Workbook

Sheet Las Misiones (2)
B2: FICHA TECNICA DEL SISTEMA AISLADO
B3: Departamento | C3: Santa Cruz
B4: Provincia | C4: Guarayos
B5: Sistema Eléctrico | C5: Las Misiones
B6: Empresa | C6: CRE Ltda.
B7: Combustible | C7: Gas/Diesel
B8: Consumo especifico (pc/kWh) (*) | C8: =SUM(F20:H20)/SUM(F18:H18) -> 13.23130259
B9: Consumo especifico (lts/kWh) (*) | C9: 0.2771806554
B10: % Crecimiento Acumulativo Anual (**) | C10: =((H15/D15)^(1/4))-1 -> 0.06255341609
B11: Factor Ʃ(Energía Vendida)/Ʃ(Generación Total - Bruta) | C11: =SUM(D22:H22)/SUM(D15:H15) -> 0.8423761643
B12: Factor Ʃ(Generación Total - Bruta)/Ʃ(Generación Diesel) | C12: =SUM(F19:H19)/SUM(F15:H15) -> 0.1605117573
C14: Unidades | D14: 2014 | E14: =+D14+1 -> 2015 | F14: =+E14+1 -> 2016 | G14: 2017 | H14: 2018 | I14: 2019 | J14: 2020 | K14: 2021 | L14: 2022 | M14: 2023 | N14: 2024 | O14: 2025
B15: Generación Total | C15: MWh | D15: =+D16+D17 -> 45834.74914 | E15: =+E16+E17 -> 51150.008 | F15: 55241.41 | G15: 59494.526 | H15: 58424.89577 | I15: =H15*(1+$C$10) -> 62079.57258 | J15: =I15*(1+$C$10) -> 65962.86192 | K15: 70089.06427 | L15: 74473.37467 | M15: 79131.93866 | N15: 84081.91175 | O15: 89341.52256
B16: Generación Energía Renovable | C16: MWh
B17: Generación Fósil | C17: MWh | D17: =+Datos!D41 -> 45834.74914 | E17: =+Datos!E41 -> 51150.008 | F17: =+Datos!F41 -> 55241.41 | G17: =+Datos!G41 -> 59494.526 | H17: =+Datos!H41 -> 58424.89577 | I17: =+I15-I16 -> 62079.57258 | J17: =+J15-J16 -> 65962.86192 | K17: 70089.06427 | L17: 74473.37467 | M17: 79131.93866 | N17: 84081.91175 | O17: 89341.52256
B18: Generación Fósil Gas | C18: MWh | D18: =+D17-D19 -> 45415.10947 | E18: =+E17-E19 -> 49661.70428 | F18: 53151.03324 | G18: 46841.12493 | H18: 45374.3242 | I18: =+I17-I19 -> 52115.0713 | J18: =+J17-J19 -> 55375.04704 | K18: 58838.9454 | L18: 62519.52243 | M18: 66430.33213 | N18: 70585.77634 | O18: 75001.15778
B19: Generación Fósil Diesel | C19: MWh | D19: =D21/$C$9 -> 419.6396745 | E19: =E21/$C$9 -> 1488.303718 | F19: 2090.376759 | G19: 12653.40107 | H19: 13050.57157 | I19: =+I15*$C$12 -> 9964.501285 | J19: =+J15*$C$12 -> 10587.81488 | K19: 11250.11887 | L19: 11953.85224 | M19: 12701.60653 | N19: 13496.13541 | O19: 14340.36478
B20: Combustible Fósil gas natural | C20: MPC | D20: =+Datos!D92 -> 571963.428 | E20: =+Datos!E92 -> 612920.549 | F20: =+Datos!F92 -> 663158.386 | G20: =+Datos!G92 -> 620081.935 | H20: =+Datos!H92 -> 640147.5933 | I20: =+I18*$C$8 -> 689550.2777 | J20: =+J18*$C$8 -> 732684.0031 | K20: 778515.8904 | L20: 827214.7189 | M20: 878959.8254 | N20: 933941.7651 | O20: 992363.0129
B21: Combustible Fósil Diesel | C21: Miles de Litros | D21: =+Datos!D93 -> 116.316 | E21: =+Datos!E93 -> 412.529 | F21: =+Datos!F93 -> 579.412 | G21: =+Datos!G93 -> 3507.278001 | H21: =+Datos!H93 -> 3617.36598 | I21: =+I19*$C$9 -> 2761.966997 | J21: =+J19*$C$9 -> 2934.737467 | K21: 3118.315321 | L21: 3313.376597 | M21: 3520.639622 | N21: 3740.867657 | O21: 3974.871708
B22: Energía Vendida | C22: MWh | D22: =+Datos!D59 -> 37833.119 | E22: =+Datos!E59 -> 41946.924 | F22: =+Datos!F59 -> 46627.073 | G22: =+Datos!G59 -> 48820.517 | H22: =+Datos!H59 -> 52336.572 | I22: =I15*$C$11 -> 52294.35224 | J22: =J15*$C$11 -> 55565.54261 | K22: 59041.35712 | L22: 62734.5957 | M22: 66658.85897 | N22: 70828.59831 | O22: 75259.16909
B23: Cantidad de Usuarios | D23: =+Datos!D75 -> 18188 | E23: =+Datos!E75 -> 20295 | F23: =+Datos!F75 -> 22711 | G23: =+Datos!G75 -> 25616 | H23: =+Datos!H75 -> 28263
B24: Consumo por usuario (***) | C24: kWh/usuario-mes | D24: =(D22*1000/D23)/12 -> 173.3428588 | E24: =(E22*1000/E23)/12 -> 172.2383346 | F24: =(F22*1000/F23)/12 -> 171.0884337 | G24: =(G22*1000/G23)/12 -> 158.8216902 | H24: =(H22*1000/H23)/12 -> 154.3141563
B25: Demanda Máxima | C25: MW | D25: =+Datos!D113 -> 0 | E25: =+Datos!E113 -> 0 | F25: =+Datos!F113 -> 10.15507 | G25: =+Datos!G113 -> 11.06016641 | H25: =+Datos!H113 -> 11.73985521
B26: Potencia Instalada | C26: MW | D26: =+Datos!D7 -> 17.15 | E26: =+Datos!E7 -> 17.15 | F26: =+Datos!F7 -> 21.35 | G26: =+Datos!G7 -> 21.35 | H26: =+Datos!H7 -> 21.35
B27: Pot. Efectiva a Temp. Media | C27: MW | D27: =+Datos!D23 -> 15 | E27: =+Datos!E23 -> 15 | F27: =+Datos!F23 -> 19.05 | G27: =+Datos!G23 -> 19.05 | H27: =+Datos!H23 -> 19.05
B28: Factor de Planta (****) | D28: =D17/(D27*8760) -> 0.3488184866 | E28: =E17/(E27*8760) -> 0.3892694673 | F28: =F17/(F27*8760) -> 0.3310287156 | G28: =G17/(G27*8760) -> 0.3565150949 | H28: =H17/(H27*8760) -> 0.3501054409
B30: (*) Factor Ʃ(Combustible Fósil)/Ʃ(Generación) - Consideramos los tres últimos años, por tecnología
B31: (**) F = C*(1+i)^n - i = ((F/C)^(1/n))-1
B32: (***) Energía Vendida año i / Cantidad Usuarios año i
B33: (****) Generación Fósil año i / ((Pot. Efectiva a Temp. Media año i) * 8760)
B35: CALCULOS LINEA DE BASE | E35: Factores de Emisiones
B36: Categoría | C36: Gran Escala | E36: EF CO2,j = COEF i,j = | F36: =54300*0.00000105506 -> 0.057289758 | G36: gCO2/BTU | H36: Gas Natural
B37: Metodología Aplicable | C37: AM0045 | E37: EF CO2,j = COEF i,j = | F37: =72600*0.00000105506 -> 0.076597356 | G37: gCO2/BTU | H37: Diesel
B38: NCV - PCI (Diesel BTU/litro) = | C38: 33710
B39: NCV - PCI (Diesel BTU/pc) = | C39: 940 | D39: (PCI del gas para SCZ)
D43: Ecuación (1) | H43: Ecuación (8)
B46: Donde:
B47: GEN j,bl = | C47: MWh | D47: Electricidad (MWh) generada por el sistema aislado de la fuente j (gas natural o diésel), el los últimos tres años previo a la implementación del proyecto
B48: F i,j,bl = | C48: MMBTU | D48: Cantidad de Combustible i (masa o volumen) consumido por la fuente "j"
B49: EF bl,ini = | C49: tCO2/MWh | D49: Línea de Base del Factor de Emisiones del sistema aislado (tCO2e/MWh) al momento de la interconexión a la red
B50: COEF i,j = | C50: gCO2/BTU | D50: Coeficiente de emisiones de CO2 del combustible
B51: BE y = | C51: tCO2/año | D51: Línea de Base de emisiones
B52: EG y = | C52: MWh | D52: Electricidad abastecida al sistema Aislado en el año y
D54: =+D23 -> 18188 | E54: =+E23 -> 20295 | F54: =+F23 -> 22711 | G54: =+G23 -> 25616 | H54: =+H23 -> 28263 | I54: =+H54+1 -> 28264 | J54: 28265 | K54: 28266 | L54: 28267 | M54: 28268 | N54: 28269 | O54: 28270
B55: EG y = | C55: MWh | D55: =+D15 -> 45834.74914 | E55: 51150.008 | F55: 55241.41 | G55: 59494.526 | H55: 58424.89577 | I55: 62079.57258 | J55: 65962.86192 | K55: 70089.06427 | L55: 74473.37467 | M55: 79131.93866 | N55: 84081.91175 | O55: 89341.52256
B56: GEN j,bl = | C56: MWh | D56: =+D17 -> 45834.74914 | E56: 51150.008 | F56: 55241.41 | G56: 59494.526 | H56: 58424.89577 | I56: 62079.57258 | J56: 65962.86192 | K56: 70089.06427 | L56: 74473.37467 | M56: 79131.93866 | N56: 84081.91175 | O56: 89341.52256
B57: F i,j,bl = | C57: MMBTU (gas) | D57: =D20*1000*$C$39/1000000 -> 537645.6223 | E57: 576145.3161 | F57: 623368.8828 | G57: 582877.0189 | H57: 601738.7377 | I57: 648177.261 | J57: 688722.9629 | K57: 731804.937 | L57: 777581.8357 | M57: 826222.2358 | N57: 877905.2592 | O57: 932821.2321
B58: F i,j,bl = | C58: MMBTU (Diesel) | D58: =+D21*$C$38/1000 -> 3921.01236 | E58: 13906.35259 | F58: 19531.97852 | G58: 118230.3414 | H58: 121941.4072 | I58: 93105.90745 | J58: 98930.00002 | K58: 105118.4095 | L58: 111693.9251 | M58: 118680.7617 | N58: 126104.6487 | O58: 133992.9253
B59: EF bl,ini = | C59: tCO2/MWh | D59: =+E59 -> 0.67257223 | E59: =+F59 -> 0.67257223 | F59: =(SUM(D57:F57)*$F$36+SUM(D58:F58)*$F$37)/SUM(D56:F56) -> 0.67257223 | G59: =(SUM(E57:G57)*$F$36+SUM(E58:G58)*$F$37)/SUM(E56:G56) -> 0.6855926312 | H59: 0.713045901 | I59: =+H59 -> 0.713045901 | J59: =+I59 -> 0.713045901 | K59: 0.713045901 | L59: 0.713045901 | M59: 0.713045901 | N59: 0.713045901 | O59: 0.713045901
B60: BE y = | C60: tCO2/año | D60: =D55*F59 -> 30827.17944 | E60: =+E55*F59 -> 34402.07494 | F60: =+F59*F55 -> 37153.83831 | G60: =+G59*G55 -> 40789.00862 | H60: 41659.63244 | I60: 44265.58476 | J60: 47034.54831 | K60: 49976.71998 | L60: 53102.93454 | M60: 56424.7045 | N60: 59954.26252 | O60: 63704.60645
B61: EG y = GEN j,bl (NO hay energía renovable por lo que la Gen. Fósil = Gen. Total)
B82: ACTIVIDADES DEL PROYECTO
B83: Las emisiones de referencia se calculan considerando el consumo de combustible que se hubiera utilizado para generar la cantidad equivalente de energía en ausencia de la actividad del proyecto. | I83: Proyecto: | J83: Conexión al SIN Las Misiones
I84: Línea: | J84: 230 kV (Los Troncos - Guarayos)
J85: Mes/Año de puesta en operación | K85: 2020-12-01
J86: Categoría | K86: Gran Escala
J87: Metodología Aplicable | K87: AM00045
B88: Emisiones del Proyecto
B89: Utilizamos el factor de emisiones del Sistema Interconectado Nacional (SIN) | C89: 0.48 | G89: Ecuación (9)
G90: Ecuación (11)
G92: Ecuación (13)
B93: Donde:
B94: EG y = | C94: Electricidad abastecida al sistema Aislado por la red (SIN) en el año y (MWh)
B95: EF p = | C95: Factor de Emisión de Red (SIN) método simple promedio
B96: TL = | C96: 0.02681488095 | D96: Perdidas de energía en la red de transmisión del SIN
B97: PE sf6,y = | C97: 0 | D97: La red de transmisión nueva no tiene SF6
B98: BE y = | C98: tCO2/año | D98: Línea de Base de emisiones
B99: PE y = | C99: tCO2/año | D99: Emisiones de las actividades del Proyecto
B100: L y = | C100: tCO2/año | D100: Emisiones fugitivas del proyecto, por desmonte (Asumimos que la deforestación es < 1% de las emisiones; por lo que L y = 0) (**)
B101: ER y = | C101: tCO2/año | D101: Emisiones Reducidas
D103: 2014 | E103: =+D103+1 -> 2015 | F103: =+E103+1 -> 2016 | G103: 2017 | H103: 2018 | I103: 2019 | J103: 2020 | K103: 2021 | L103: 2022 | M103: 2023 | N103: 2024 | O103: 2025
B104: =+B15 -> Generación Total | C104: =+C15 -> MWh | D104: =+D15 -> 45834.74914 | E104: 51150.008 | F104: 55241.41 | G104: 59494.526 | H104: 58424.89577 | I104: 62079.57258 | J104: 65962.86192 | K104: 70089.06427 | L104: 74473.37467 | M104: 79131.93866 | N104: 84081.91175 | O104: 89341.52256
B105: Provision del SIN por la linea Interc.
B106: EG y(*) = | C106: MWh | J106: =+J15*0.7/12*1 -> 3847.833612 | K106: =+K15*0.7 -> 49062.34499 | L106: =+L15*0.7 -> 52131.36227 | M106: =+M15*0.7 -> 55392.35706 | N106: =+N15*0.7 -> 58857.33822 | O106: =+O15*0.7 -> 62539.06579
B107: =+B96 -> TL = | C107: % | J107: =+C96 -> 0.02681488095 | K107: =+C96 -> 0.02681488095 | L107: =+K107 -> 0.02681488095 | M107: 0.02681488095 | N107: 0.02681488095 | O107: 0.02681488095
B108: EF CO2,y = | C108: tCO2/MWh | J108: =+C89 -> 0.48 | K108: =+C89 -> 0.48 | L108: 0.48 | M108: 0.48 | N108: 0.48 | O108: 0.48
B109: PE y = | C109: tCO2/año | J109: =J106*J108*(J107+1) -> 1896.48615 | K109: =K106*K108*(K107+1) -> 24181.41404 | L109: =L106*L108*(L107+1) -> 25694.0441 | M109: =M106*M108*(M107+1) -> 27301.29433 | N109: =N106*N108*(N107+1) -> 29009.08356 | O109: =O106*O108*(O107+1) -> 30823.70083
B110: (*) Asumimos que un 70% de la demanda de energía vendría de la red (SIN)
B111: (**) Las líneas se construyen en derechos de vía de caminos o tierras agrícolas
B112: Una hectárea (10000 m2) puede absorber 20 tCO2/año y las perdidas en construcción de líneas solo se aplican al primer año, las hemos considerado cero (0)
D115: =+D103 -> 2014 | E115: =+E103 -> 2015 | F115: =+F103 -> 2016 | G115: =+G103 -> 2017 | H115: =+H103 -> 2018 | I115: =+I103 -> 2019 | J115: =+J103 -> 2020 | K115: =+K103 -> 2021 | L115: =+L103 -> 2022 | M115: =+M103 -> 2023 | N115: =+N103 -> 2024 | O115: =+O103 -> 2025
B116: Sin Proyecto
B117: Generación Total | C117: MWh | D117: =+D15 -> 45834.74914 | E117: =+E15 -> 51150.008 | F117: =+F15 -> 55241.41 | G117: =+G15 -> 59494.526 | H117: =+H15 -> 58424.89577 | I117: =+I15 -> 62079.57258 | J117: =+J15 -> 65962.86192 | K117: =+K15 -> 70089.06427 | L117: =+L15 -> 74473.37467 | M117: =+M15 -> 79131.93866 | N117: =+N15 -> 84081.91175 | O117: =+O15 -> 89341.52256
B118: Generación Combustible Fósil Gas | C118: MWh | D118: =+D18 -> 45415.10947 | E118: =+E18 -> 49661.70428 | F118: =+F18 -> 53151.03324 | G118: =+G18 -> 46841.12493 | H118: =+H18 -> 45374.3242 | I118: =+I18 -> 52115.0713 | J118: =+J18 -> 55375.04704 | K118: =+K18 -> 58838.9454 | L118: =+L18 -> 62519.52243 | M118: =+M18 -> 66430.33213 | N118: =+N18 -> 70585.77634 | O118: =+O18 -> 75001.15778
B119: Combustible Fósil Gas | C119: MPC | D119: =+D20 -> 571963.428 | E119: =+E20 -> 612920.549 | F119: 663158.386 | G119: 620081.935 | H119: 640147.5933 | I119: =+I20 -> 689550.2777 | J119: 732684.0031 | K119: 778515.8904 | L119: 827214.7189 | M119: 878959.8254 | N119: 933941.7651 | O119: 992363.0129
B120: Generación Combustible Fósil Diesel | C120: MWh | D120: =+D19 -> 419.6396745 | E120: =+E19 -> 1488.303718 | F120: 2090.376759 | G120: 12653.40107 | H120: 13050.57157 | I120: =+I19 -> 9964.501285 | J120: 10587.81488 | K120: 11250.11887 | L120: 11953.85224 | M120: 12701.60653 | N120: 13496.13541 | O120: 14340.36478
B121: Combustible Fósil Diesel | C121: Miles de Litros | D121: =+D21 -> 116.316 | E121: =+E21 -> 412.529 | F121: 579.412 | G121: 3507.278001 | H121: 3617.36598 | I121: =+I21 -> 2761.966997 | J121: 2934.737467 | K121: 3118.315321 | L121: 3313.376597 | M121: 3520.639622 | N121: 3740.867657 | O121: 3974.871708
B122: Emisiones Planta Sistema Aislado (BE y) | C122: tCO2/año | D122: =+D60 -> 30827.17944 | E122: 34402.07494 | F122: 37153.83831 | G122: 40789.00862 | H122: 41659.63244 | I122: 44265.58476 | J122: 47034.54831 | K122: 49976.71998 | L122: 53102.93454 | M122: 56424.7045 | N122: 59954.26252 | O122: 63704.60645
B123: Factor de Emisiones | C123: tCO2/MWh | D123: =D59 -> 0.67257223 | E123: =E59 -> 0.67257223 | F123: =F59 -> 0.67257223 | G123: =G59 -> 0.6855926312 | H123: =H59 -> 0.713045901 | I123: =I59 -> 0.713045901 | J123: =J59 -> 0.713045901 | K123: =K59 -> 0.713045901 | L123: =L59 -> 0.713045901 | M123: =M59 -> 0.713045901 | N123: =N59 -> 0.713045901 | O123: =O59 -> 0.713045901
B126: Con Proyecto
B127: Generación Combustible Fósil Gas | C127: MWh | D127: =(D18/D15)*(D15-D106) -> 45415.10947 | E127: =(E18/E15)*(E15-E106) -> 49661.70428 | F127: =(F18/F15)*(F15-F106) -> 53151.03324 | G127: =(G18/G15)*(G15-G106) -> 46841.12493 | H127: =(H18/H15)*(H15-H106) -> 45374.3242 | I127: =(I18/I15)*(I15-I106) -> 52115.0713 | J127: =(J18/J15)*(J15-J106) -> 52144.83596 | K127: =(K18/K15)*(K15-K106) -> 17651.68362 | L127: =(L18/L15)*(L15-L106) -> 18755.85673 | M127: =(M18/M15)*(M15-M106) -> 19929.09964 | N127: =(N18/N15)*(N15-N106) -> 21175.7329 | O127: =(O18/O15)*(O15-O106) -> 22500.34733
B128: Combustible Fósil Gas | C128: MPC | D128: =+D20 -> 571963.428 | E128: =+E20 -> 612920.549 | F128: 663158.386 | G128: 620081.935 | H128: 640147.5933 | I128: =+I127*$C8 -> 689550.2777 | J128: =+J127*$C8 -> 689944.1029 | K128: =+K127*$C8 -> 233554.7671 | L128: =+L127*$C8 -> 248164.4157 | M128: =+M127*$C8 -> 263687.9476 | N128: =+N127*$C8 -> 280182.5295 | O128: =+O127*$C8 -> 297708.9039
B129: Generación Combustible Fósil Diesel | C129: MWh | D129: =(D19/D15)*(D15-D106) -> 419.6396745 | E129: =(E19/E15)*(E15-E106) -> 1488.303718 | F129: =(F19/F15)*(F15-F106) -> 2090.376759 | G129: =(G19/G15)*(G15-G106) -> 12653.40107 | H129: =(H19/H15)*(H15-H106) -> 13050.57157 | I129: =(I19/I15)*(I15-I106) -> 9964.501285 | J129: =(J19/J15)*(J15-J106) -> 9970.192345 | K129: =(K19/K15)*(K15-K106) -> 3375.035661 | L129: =(L19/L15)*(L15-L106) -> 3586.155671 | M129: =(M19/M15)*(M15-M106) -> 3810.481959 | N129: =(N19/N15)*(N15-N106) -> 4048.840622 | O129: =(O19/O15)*(O15-O106) -> 4302.109434
B130: Combustible Fósil Diesel | C130: Miles de Litros | D130: =+D21 -> 116.316 | E130: =+E21 -> 412.529 | F130: 579.412 | G130: 3507.278001 | H130: 3617.36598 | I130: =+I129*$C9 -> 2761.966997 | J130: =+J129*$C9 -> 2763.544448 | K130: =+K129*$C9 -> 935.4945964 | L130: =+L129*$C9 -> 994.0129791 | M130: =+M129*$C9 -> 1056.191887 | N130: =+N129*$C9 -> 1122.260297 | O130: =+O129*$C9 -> 1192.461512
B131: Emisiones Planta Interconectada | C131: tCO2/año | D131: =(D15-D106)*D59 -> 30827.17944 | E131: =(E15-E106)*E59 -> 34402.07494 | F131: =(F15-F106)*F59 -> 37153.83831 | G131: =(G15-G106)*G59 -> 40789.00862 | H131: =(H15-H106)*H59 -> 41659.63244 | I131: =(I15-I106)*I59 -> 44265.58476 | J131: =(J15-J106)*J59 -> 44290.86632 | K131: =(K15-K106)*K59 -> 14993.01599 | L131: =(L15-L106)*L59 -> 15930.88036 | M131: =(M15-M106)*M59 -> 16927.41135 | N131: =(N15-N106)*N59 -> 17986.27875 | O131: =(O15-O106)*O59 -> 19111.38193
B132: Emisiones del Proyecto (PE y-0) | C132: tCO2/año | D132: =+D109 -> 0 | E132: =+E109 -> 0 | F132: 0 | G132: 0 | H132: 0 | I132: 0 | J132: 1896.48615 | K132: 24181.41404 | L132: 25694.0441 | M132: 27301.29433 | N132: 29009.08356 | O132: 30823.70083
B133: Total Emisiones del SA con Proyecto (PE y) | C133: tCO2/año | D133: =+D131+D132 -> 30827.17944 | E133: =+E131+E132 -> 34402.07494 | F133: 37153.83831 | G133: 40789.00862 | H133: 41659.63244 | I133: 44265.58476 | J133: 46187.35247 | K133: 39174.43004 | L133: 41624.92446 | M133: 44228.70568 | N133: 46995.36231 | O133: 49935.08276
B134: Factor Emisiones con Proyecto | C134: tCO2/MWh | D134: =+D133/D104 -> 0.67257223 | E134: =+E133/E104 -> 0.67257223 | F134: 0.67257223 | G134: 0.6855926312 | H134: 0.713045901 | I134: 0.713045901 | J134: 0.7002023734 | K134: 0.5589235703 | L134: 0.5589235703 | M134: 0.5589235703 | N134: 0.5589235703 | O134: 0.5589235703
B136: Reducciones
B137: Reduccion Consumo Combustible Fósil
B138: =+B128 -> Combustible Fósil Gas | C138: =+C128 -> MPC | D138: =+D119-D128 -> 0 | E138: =+E119-E128 -> 0 | F138: =+F119-F128 -> 0 | G138: =+G119-G128 -> 0 | H138: =+H119-H128 -> 0 | I138: =+I119-I128 -> 0 | J138: =+J119-J128 -> 42739.90018 | K138: =+K119-K128 -> 544961.1233 | L138: =+L119-L128 -> 579050.3032 | M138: =+M119-M128 -> 615271.8778 | N138: =+N119-N128 -> 653759.2355 | O138: =+O119-O128 -> 694654.109
B139: =+B130 -> Combustible Fósil Diesel | C139: =+C130 -> Miles de Litros | D139: =+D121-D130 -> 0 | E139: =+E121-E130 -> 0 | F139: =+F121-F130 -> 0 | G139: =+G121-G130 -> 0 | H139: =+H121-H130 -> 0 | I139: =+I121-I130 -> 0 | J139: =+J121-J130 -> 171.1930189 | K139: =+K121-K130 -> 2182.820725 | L139: =+L121-L130 -> 2319.363618 | M139: =+M121-M130 -> 2464.447735 | N139: =+N121-N130 -> 2618.60736 | O139: =+O121-O130 -> 2782.410196
B140: Emisiones Reducidas (ER y) | C140: tCO2/año | D140: =+D122-D133 -> 0 | E140: =+E122-E133 -> 0 | F140: =+F122-F133 -> 0 | G140: =+G122-G133 -> 0 | H140: =+H122-H133 -> 0 | I140: =+I122-I133 -> 0 | J140: =+J122-J133 -> 847.1958347 | K140: =+K122-K133 -> 10802.28994 | L140: =+L122-L133 -> 11478.01008 | M140: =+M122-M133 -> 12195.99882 | N140: =+N122-N133 -> 12958.90021 | O140: =+O122-O133 -> 13769.52368
B141: Reducción Factor de Emisiones | C141: tCO2/MWh | D141: =+D134-D123 -> 0 | E141: =+E134-E123 -> 0 | F141: 0 | G141: 0 | H141: 0 | I141: 0 | J141: -0.01284352756 | K141: -0.1541223307 | L141: -0.1541223307 | M141: -0.1541223307 | N141: -0.1541223307 | O141: -0.1541223307
D144: 2014 | E144: 2015 | F144: 2016 | G144: 2017 | H144: 2018 | I144: 2019 | J144: 2020 | K144: 2021 | L144: 2022 | M144: 2023 | N144: 2024 | O144: 2025
C145: Combustible Fósil Gas SIN proyecto (MPC) | D145: =+D119 -> 571963.428 | E145: =+E119 -> 612920.549 | F145: 663158.386 | G145: 620081.935 | H145: 640147.5933 | I145: 689550.2777 | J145: 732684.0031 | K145: 778515.8904 | L145: 827214.7189 | M145: 878959.8254 | N145: 933941.7651 | O145: 992363.0129
C146: Combustible Fósil Gas CON proyecto (MPC) | D146: =+D128 -> 571963.428 | E146: =+E128 -> 612920.549 | F146: 663158.386 | G146: 620081.935 | H146: 640147.5933 | I146: 689550.2777 | J146: 689944.1029 | K146: 233554.7671 | L146: 248164.4157 | M146: 263687.9476 | N146: 280182.5295 | O146: 297708.9039
C147: Combustible Fósil Diesel (SIN) proyecto (Miles de Litros) | D147: =+D121 -> 116.316 | E147: =+E121 -> 412.529 | F147: 579.412 | G147: 3507.278001 | H147: 3617.36598 | I147: 2761.966997 | J147: 2934.737467 | K147: 3118.315321 | L147: 3313.376597 | M147: 3520.639622 | N147: 3740.867657 | O147: 3974.871708
C148: Combustible Fósil Diesel CON proyecto (Miles de Litros) | D148: =+D130 -> 116.316 | E148: =+E130 -> 412.529 | F148: 579.412 | G148: 3507.278001 | H148: 3617.36598 | I148: 2761.966997 | J148: 2763.544448 | K148: 935.4945964 | L148: 994.0129791 | M148: 1056.191887 | N148: 1122.260297 | O148: 1192.461512
C149: Emisiones Planta SA SIN Proyecto(BE y) - tCO2/año | D149: =+D122 -> 30827.17944 | E149: =+E122 -> 34402.07494 | F149: 37153.83831 | G149: 40789.00862 | H149: 41659.63244 | I149: 44265.58476 | J149: 47034.54831 | K149: 49976.71998 | L149: 53102.93454 | M149: 56424.7045 | N149: 59954.26252 | O149: 63704.60645
C150: Total Emisiones del SA CON Proyecto (PE y) tCO2/año | D150: =+D133 -> 30827.17944 | E150: =+E133 -> 34402.07494 | F150: 37153.83831 | G150: 40789.00862 | H150: 41659.63244 | I150: 44265.58476 | J150: 46187.35247 | K150: 39174.43004 | L150: 41624.92446 | M150: 44228.70568 | N150: 46995.36231 | O150: 49935.08276
C151: Factor de Emisiones SA SIN Proyecto tCO2/MWh | D151: =+D123 -> 0.67257223 | E151: =+E123 -> 0.67257223 | F151: 0.67257223 | G151: 0.6855926312 | H151: 0.713045901 | I151: 0.713045901 | J151: 0.713045901 | K151: 0.713045901 | L151: 0.713045901 | M151: 0.713045901 | N151: 0.713045901 | O151: 0.713045901
C152: Factor de Emisiones SA CON Proyecto tCO2/MWh | D152: =+D134 -> 0.67257223 | E152: =+E134 -> 0.67257223 | F152: 0.67257223 | G152: 0.6855926312 | H152: 0.713045901 | I152: 0.713045901 | J152: 0.7002023734 | K152: 0.5589235703 | L152: 0.5589235703 | M152: 0.5589235703 | N152: 0.5589235703 | O152: 0.5589235703

Sheet Huacaraje (2)
B2: FICHA TECNICA DEL SISTEMA AISLADO
B4: Departamento | C4: Beni
B5: Provincia | C5: Itenez
B6: Sistema Eléctrico | C6: Huacaraje
B7: Empresa | C7: ENDE DELBENI S.A.M.
B8: Combustible | C8: Diesel
B9: Consumo especifico (lts/kWh) (*) | C9: =SUM(G17:H17)/SUM(G16:H16) -> 0.3657595495
B10: % Crecimiento Acumulativo Anual (**) | C10: =H14/G14-1 -> 0.001514992038 | D10: Se debe tomar una decisión
B11: Factor Ʃ(Energía Vendida)/Ʃ(Generación Total - Bruta) | C11: =SUM(G18:H18)/SUM(G14:H14) -> 0.8618397074
C13: Unidades | D13: 2014 | E13: =+D13+1 -> 2015 | F13: =+E13+1 -> 2016 | G13: 2017 | H13: 2018 | I13: 2019 | J13: 2020 | K13: 2021 | L13: 2022 | M13: 2023 | N13: 2024 | O13: 2025
B14: Generación Total | C14: MWh | D14: =+D15+D16 -> 0 | E14: =+E15+E16 -> 0 | F14: 190 | G14: 679.305 | H14: 680.3341417 | I14: =+H14*(1+$C$10) -> 681.3648425 | J14: =+I14*(1+$C$10) -> 682.3971048 | K14: 683.430931 | L14: 684.4663234 | M14: 685.5032844 | N14: 686.5418164 | O14: 687.5819218
B15: Generación Energía Renovable | C15: MWh
B16: Generación Fósil | C16: MWh | D16: =+Datos!D47 -> 0 | E16: =+Datos!E47 -> 0 | F16: =+Datos!F47 -> 190 | G16: =+Datos!G47 -> 679.305 | H16: =+Datos!H47 -> 680.3341417 | I16: =+I14-I15 -> 681.3648425 | J16: =+J14-J15 -> 682.3971048 | K16: 683.430931 | L16: 684.4663234 | M16: 685.5032844 | N16: 686.5418164 | O16: 687.5819218
B17: Combustible Fósil | C17: Miles de Litros | D17: =+Datos!D103 -> 0 | E17: =+Datos!E103 -> 0 | F17: =+Datos!F103 -> 0 | G17: =+Datos!G103 -> 284.651 | H17: =+Datos!H103 -> 212.65 | I17: =+I16*$C$9 -> 249.2156979 | J17: =+J16*$C$9 -> 249.5932577 | K17: 249.9713895 | L17: 250.3500941 | M17: 250.7293725 | N17: 251.1092255 | O17: 251.489654
B18: Energía Vendida | C18: MWh | D18: =+Datos!D65 -> 0 | E18: =+Datos!E65 -> 0 | F18: =+Datos!F65 -> 0 | G18: =+Datos!G65 -> 575.524 | H18: =+Datos!H65 -> 596.267 | I18: =I16*$C$11 -> 587.2272765 | J18: =J16*$C$11 -> 588.1169211 | K18: 589.0079136 | L18: 589.9002559 | M18: 590.7939501 | N18: 591.6889982 | O18: 592.5854023
B19: Cantidad de Usuarios | D19: =+Datos!D81 -> 0 | E19: =+Datos!E81 -> 0 | F19: =+Datos!F81 -> 406 | G19: =+Datos!G81 -> 490 | H19: =+Datos!H81 -> 505
B20: Consumo por usuario (***) | C20: kWh/usuario-mes | F20: =(F18*1000/F19)/12 -> 0 | G20: =(G18*1000/G19)/12 -> 97.87823129 | H20: =(H18*1000/H19)/12 -> 98.39389439
B21: Demanda Máxima | C21: MW | D21: =+Datos!D119 -> 0 | E21: =+Datos!E119 -> 0 | F21: =+Datos!F119 -> 0 | G21: =+Datos!G119 -> 0.169 | H21: =+Datos!H119 -> 0.159
B22: Potencia Instalada | C22: MW | D22: =+Datos!D13 -> 0 | E22: =+Datos!E13 -> 0 | F22: =+Datos!F13 -> 0.57 | G22: =+Datos!G13 -> 0.695 | H22: =+Datos!H13 -> 0.464
B23: Pot. Efectiva a Temp. Media | C23: MW | D23: =+Datos!D29 -> 0 | E23: =+Datos!E29 -> 0 | F23: =+Datos!F29 -> 0.13 | G23: =+Datos!G29 -> 0.648 | H23: =+Datos!H29 -> 0.398
B24: Factor de Planta (****) | F24: =F16/(F23*8760) -> 0.1668422901 | G24: =G16/(G23*8760) -> 0.1196701125 | H24: =H16/(H23*8760) -> 0.1951349618
B26: (*) Factor Ʃ(Combustible Fósil)/Ʃ(Generación) - Consideramos los tres últimos años, por tecnología
B27: (**) F = C*(1+i)^n - i = ((F/C)^(1/n))-1 - Cuando el crecimiento NO es un datos consistente, asumimos el promedio de los SA
B28: (***) Energía Vendida año i / Cantidad Usuarios año i
B29: (****) Generación Fósil año i / ((Pot. Efectiva a Temp. Media año i) * 8760)
B31: CALCULOS LINEA DE BASE | E31: Factores de Emisiones
B32: Categoría | C32: Pequeña Escala | E32: Gas Natural | F32: =54300*0.00000105506 -> 0.057289758 | G32: gCO2/BTU
B33: Metodología Aplicable | C33: AMS-I.A | E33: Diesel | F33: =72600*0.00000105506 -> 0.076597356 | G33: gCO2/BTU
B34: NCV - PCI (Diesel BTU/litro) = | C34: 33710
B35: NCV - PCI (Diesel BTU/pc) = | C35: 940
D37: Ecuación (5)
C39: FC j,y = GEN j,bl * Consumo especifico (litros/kWh o pc/kWh)
B40: Donde:
B41: GEN j,bl = | C41: MWh | D41: Electricidad (MWh) generada por el sistema aislado de la fuente "j"
B42: FC j,y = | C42: Miles de litros | D42: Cantidad de Combustible i (masa o volumen) consumido por la fuente "j"
B43: NCV j = | C43: Btu/litro | D43: Poder Calorífico Inferior del combustible "j"
B44: EF co2,j = | C44: gCO2/BTU | D44: Coeficiente de emisiones de CO2 del combustible
B45: BE y = | C45: tCO2/año | D45: Línea de Base de emisiones
B46: EG y = | C46: MWh | D46: Electricidad abastecida al sistema Aislado en el año "y"
B47: EF bl = | C47: tCO2/MWh | D47: Línea de Base del Factor de Emisiones del sistema aislado
D49: =+D13 -> 2014 | E49: 2015 | F49: 2016 | G49: 2017 | H49: 2018 | I49: 2019 | J49: 2020 | K49: 2021 | L49: 2022 | M49: 2023 | N49: 2024 | O49: 2025
B50: EG y = | C50: MWh | D50: =+D14 -> 0 | E50: 0 | F50: 190 | G50: 679.305 | H50: 680.3341417 | I50: =+I14 -> 681.3648425 | J50: 682.3971048 | K50: 683.430931 | L50: 684.4663234 | M50: 685.5032844 | N50: 686.5418164 | O50: 687.5819218
B51: GEN j,bl = | C51: MWh | D51: =+D16 -> 0 | E51: 0 | F51: 190 | G51: 679.305 | H51: 680.3341417 | I51: 681.3648425 | J51: 682.3971048 | K51: 683.430931 | L51: 684.4663234 | M51: 685.5032844 | N51: 686.5418164 | O51: 687.5819218
B52: FC j,y = | C52: Miles de Litros | D52: =+D17 -> 0 | E52: 0 | F52: 0 | G52: 284.651 | H52: 212.65 | I52: =+I17 -> 249.2156979 | J52: 249.5932577 | K52: 249.9713895 | L52: 250.3500941 | M52: 250.7293725 | N52: 251.1092255 | O52: 251.489654
B53: NCV j = | C53: Btu/litro | G53: =+C34 -> 33710 | H53: =+G53 -> 33710 | I53: =+H53 -> 33710 | J53: 33710 | K53: 33710 | L53: 33710 | M53: 33710 | N53: 33710 | O53: 33710
B54: EF co2,j = | C54: gCO2/BTU | G54: =+F33 -> 0.076597356 | H54: =+G54 -> 0.076597356 | I54: =+H54 -> 0.076597356 | J54: 0.076597356 | K54: 0.076597356 | L54: 0.076597356 | M54: 0.076597356 | N54: 0.076597356 | O54: 0.076597356
B55: BE y = | C55: tCO2/año | G55: =G52*G53*G54/1000 -> 734.9964564 | H55: =H52*H53*H54/1000 -> 549.0828996 | I55: =I52*I53*I54/1000 -> 643.4990736 | J55: =J52*J53*J54/1000 -> 644.4739696 | K55: 645.4503425 | L55: 646.4281946 | M55: 647.4075282 | N55: 648.3883454 | O55: 649.3706486
B56: EF bl = | C56: tCO2/MWh | G56: =+G55/G50 -> 1.081982992 | H56: =+H55/H50 -> 0.8070782663 | I56: =+I55/I50 -> 0.9444265883 | J56: 0.9444265883 | K56: 0.9444265883 | L56: 0.9444265883 | M56: 0.9444265883 | N56: 0.9444265883 | O56: 0.9444265883
B78: ACTIVIDADES DEL PROYECTO | J78: Proyecto: | K78: Planta Solar Huacaraje
B79: Las emisiones de referencia se calculan considerando el consumo de combustible que se hubiera utilizado para generar la cantidad equivalente de energía en ausencia de la actividad del proyecto. | K79: Potencia Instalada MW | L79: 250 | M79: kWp
K80: Potencia a Temp. Media | L80: =+L79*0.95 -> 237.5 | M80: kWp
K81: Mes/Año de puesta en operación | L81: 2021-05-01
K82: Factor de Planta | L82: 0.1373698059
B83: Opción 2: basada en la generación anual de electricidad por la actividad del proyecto | K83: Categoría | L83: Pequeña Escala
K84: Metodología Aplicable | L84: AMS I.A
F85: Ecuación 1
F87: Ecuación 2
B88: Donde:
B89: E BL,y = | C89: MWh | D89: Línea de Base de Energía, y
B90: EG i,y = | C90: MWh | D90: Electricidad generada por las actividades del proyecto en el año y
B91: TDL = | C91: % | D91: Promedio histórico de perdidas técnicas (Transmisión y distribución)
B92: EF CO2,y = | C92: tCO2/MWh | D92: Línea de Base del Factor de Emisiones del sistema aislado
B93: BE CO2, y = | C93: tCO2/año | D93: Línea de Base de Emisiones
B94: TDL = | C94: =1-C11 -> 0.1381602926 | D94: (1 - Factor Ʃ(Energía Vendida)/Ʃ(Generación Total - Bruta))
B96: Emisiones Reducidas por la Planta Solar | D96: 2014 | E96: 2015 | F96: 2016 | G96: 2017 | H96: 2018 | I96: 2019 | J96: 2020 | K96: 2021 | L96: 2022 | M96: 2023 | N96: 2024 | O96: 2025
B97: EG i,y = | C97: MWh | K97: =L97/12*8 -> 190.5319208 | L97: =L80*L82*8760/1000 -> 285.7978812 | M97: =+L97 -> 285.7978812 | N97: =+M97 -> 285.7978812 | O97: =+N97 -> 285.7978812
B98: TDL = | C98: % | K98: =+C94 -> 0.1381602926 | L98: =+K98 -> 0.1381602926 | M98: =+L98 -> 0.1381602926 | N98: 0.1381602926 | O98: 0.1381602926
B99: E BL,y = | C99: MWh | K99: =+K97*(1-K98) -> 164.2079749 | L99: =+L97*(1-L98) -> 246.3119623 | M99: =+M97*(1-M98) -> 246.3119623 | N99: =+N97*(1-N98) -> 246.3119623 | O99: =+O97*(1-O98) -> 246.3119623
B100: EF CO2,y = | C100: tCO2/MWh | K100: =+K56 -> 0.9444265883 | L100: =+L56 -> 0.9444265883 | M100: 0.9444265883 | N100: 0.9444265883 | O100: 0.9444265883
B101: BE CO2, y = | C101: tCO2/año | K101: =+K100*K99 -> 155.0823775 | L101: =+L100*L99 -> 232.6235663 | M101: 232.6235663 | N101: 232.6235663 | O101: 232.6235663
D105: =+D96 -> 2014 | E105: =+E96 -> 2015 | F105: 2016 | G105: 2017 | H105: 2018 | I105: 2019 | J105: 2020 | K105: 2021 | L105: 2022 | M105: 2023 | N105: 2024 | O105: 2025
B106: Sin Proyecto
B107: Generación total | C107: MWh | D107: =+D50 -> 0 | E107: =+E50 -> 0 | F107: 190 | G107: 679.305 | H107: 680.3341417 | I107: 681.3648425 | J107: 682.3971048 | K107: 683.430931 | L107: 684.4663234 | M107: 685.5032844 | N107: 686.5418164 | O107: 687.5819218
B108: Generación Combustible Fosil | C108: MWh | D108: =+D51 -> 0 | E108: =+E51 -> 0 | F108: 190 | G108: 679.305 | H108: 680.3341417 | I108: 681.3648425 | J108: 682.3971048 | K108: 683.430931 | L108: 684.4663234 | M108: 685.5032844 | N108: 686.5418164 | O108: 687.5819218
B109: Combustible Fósil | C109: Miles de Litros | D109: =+D52 -> 0 | E109: =+E52 -> 0 | F109: 0 | G109: 284.651 | H109: 212.65 | I109: 249.2156979 | J109: 249.5932577 | K109: 249.9713895 | L109: 250.3500941 | M109: 250.7293725 | N109: 251.1092255 | O109: 251.489654
B110: Emisiones de CO2e | C110: tCO2/año | D110: =+D55 -> 0 | E110: =+E55 -> 0 | F110: =+F55 -> 0 | G110: =+G55 -> 734.9964564 | H110: =+H55 -> 549.0828996 | I110: =+I55 -> 643.4990736 | J110: =+J55 -> 644.4739696 | K110: =+K55 -> 645.4503425 | L110: =+L55 -> 646.4281946 | M110: =+M55 -> 647.4075282 | N110: =+N55 -> 648.3883454 | O110: =+O55 -> 649.3706486
B111: Factor Emisiones | C111: tCO2/MWh | G111: =+G56 -> 1.081982992 | H111: =+H56 -> 0.8070782663 | I111: 0.9444265883 | J111: 0.9444265883 | K111: 0.9444265883 | L111: 0.9444265883 | M111: 0.9444265883 | N111: 0.9444265883 | O111: 0.9444265883
B114: Con Proyecto
B115: Generación total | C115: MWh | D115: =+D107 -> 0 | E115: =+E107 -> 0 | F115: 190 | G115: 679.305 | H115: 680.3341417 | I115: 681.3648425 | J115: 682.3971048 | K115: 683.430931 | L115: 684.4663234 | M115: 685.5032844 | N115: 686.5418164 | O115: 687.5819218
B116: Generación Planta Solar | C116: MWh | D116: =+D97 -> 0 | E116: =+E97 -> 0 | F116: 0 | G116: 0 | H116: 0 | I116: 0 | J116: 0 | K116: 190.5319208 | L116: 285.7978812 | M116: 285.7978812 | N116: 285.7978812 | O116: 285.7978812
B117: Generación Combustible Fosil | C117: MWh | D117: =+D115-D116 -> 0 | E117: =+E115-E116 -> 0 | F117: 190 | G117: 679.305 | H117: 680.3341417 | I117: 681.3648425 | J117: 682.3971048 | K117: 492.8990101 | L117: 398.6684421 | M117: 399.7054032 | N117: 400.7439352 | O117: 401.7840406
B118: Combustible Fósil | C118: Miles de Litros | D118: =+D52 -> 0 | E118: =+E52 -> 0 | F118: 0 | G118: 284.651 | H118: 212.65 | I118: =+I117*$C$9 -> 249.2156979 | J118: =+J117*$C$9 -> 249.5932577 | K118: 180.2825199 | L118: 145.8167898 | M118: 146.1960682 | N118: 146.5759212 | O118: 146.9563497
B119: Emisiones de CO2e | C119: tCO2/año | D119: =+D110-D101 -> 0 | E119: =+E110-E101 -> 0 | F119: =+F110-F101 -> 0 | G119: =+G110-G101 -> 734.9964564 | H119: =+H110-H101 -> 549.0828996 | I119: =+I110-I101 -> 643.4990736 | J119: =+J110-J101 -> 644.4739696 | K119: =+K110-K101 -> 490.367965 | L119: =+L110-L101 -> 413.8046284 | M119: =+M110-M101 -> 414.7839619 | N119: =+N110-N101 -> 415.7647792 | O119: =+O110-O101 -> 416.7470824
B120: Factor Emisiones con Proyecto | C120: tCO2/MWh | G120: =G119/G115 -> 1.081982992 | H120: 0.8070782663 | I120: 0.9444265883 | J120: 0.9444265883 | K120: =K119/K115 -> 0.7175091772 | L120: =L119/L115 -> 0.6045653588 | M120: =M119/M115 -> 0.6050794669 | N120: 0.6055927974 | O120: 0.6061053514
B123: Reducciones
B124: Reduccion Consumo Combustible Fósil
B125: Combustible Fósil Diesel | C125: Miles de Litros | D125: =+D109-D118 -> 0 | E125: =+E109-E118 -> 0 | F125: 0 | G125: 0 | H125: 0 | I125: 0 | J125: 0 | K125: 69.68886954 | L125: 104.5333043 | M125: 104.5333043 | N125: 104.5333043 | O125: 104.5333043
B126: Emisiones Reducidas (ER y) | C126: tCO2/año | D126: =+D110-D119 -> 0 | E126: =+E110-E119 -> 0 | F126: 0 | G126: 0 | H126: 0 | I126: 0 | J126: 0 | K126: 155.0823775 | L126: 232.6235663 | M126: 232.6235663 | N126: 232.6235663 | O126: 232.6235663
B127: Reducción Factor de Emisiones | C127: tCO2/MWh | K127: =+K120-K111 -> -0.2269174111 | L127: =+L120-L111 -> -0.3398612296 | M127: =+M120-M111 -> -0.3393471214 | N127: =+N120-N111 -> -0.3388337909 | O127: =+O120-O111 -> -0.3383212369
D130: 2014 | E130: 2015 | F130: 2016 | G130: 2017 | H130: 2018 | I130: 2019 | J130: 2020 | K130: 2021 | L130: 2022 | M130: 2023 | N130: 2024 | O130: 2025
C131: Combustible Fósil Diesel (SIN) proyecto (Miles de Litros) | D131: =+D109 -> 0 | E131: =+E109 -> 0 | F131: 0 | G131: 284.651 | H131: 212.65 | I131: 249.2156979 | J131: 249.5932577 | K131: 249.9713895 | L131: 250.3500941 | M131: 250.7293725 | N131: 251.1092255 | O131: 251.489654
C132: Combustible Fósil Diesel CON proyecto (Miles de Litros) | D132: =+D118 -> 0 | E132: =+E118 -> 0 | F132: 0 | G132: 284.651 | H132: 212.65 | I132: 249.2156979 | J132: 249.5932577 | K132: 180.2825199 | L132: 145.8167898 | M132: 146.1960682 | N132: 146.5759212 | O132: 146.9563497
C133: Emisiones Planta SA SIN Proyecto(BE y) - tCO2/año | D133: =+D110 -> 0 | E133: =+E110 -> 0 | F133: 0 | G133: 734.9964564 | H133: 549.0828996 | I133: 643.4990736 | J133: 644.4739696 | K133: 645.4503425 | L133: 646.4281946 | M133: 647.4075282 | N133: 648.3883454 | O133: 649.3706486
C134: Total Emisiones del SA CON Proyecto (PE y) tCO2/año | D134: =+D119 -> 0 | E134: =+E119 -> 0 | F134: 0 | G134: 734.9964564 | H134: 549.0828996 | I134: 643.4990736 | J134: 644.4739696 | K134: 490.367965 | L134: 413.8046284 | M134: 414.7839619 | N134: 415.7647792 | O134: 416.7470824
C135: Factor de Emisiones SA SIN Proyecto tCO2/MWh | D135: =+D111 -> 0 | E135: =+E111 -> 0 | F135: 0 | G135: 1.081982992 | H135: 0.8070782663 | I135: 0.9444265883 | J135: 0.9444265883 | K135: 0.9444265883 | L135: 0.9444265883 | M135: 0.9444265883 | N135: 0.9444265883 | O135: 0.9444265883
C136: Factor de Emisiones SA CON Proyecto tCO2/MWh | D136: =+D120 -> 0 | E136: =+E120 -> 0 | F136: 0 | G136: 1.081982992 | H136: 0.8070782663 | I136: 0.9444265883 | J136: 0.9444265883 | K136: 0.7175091772 | L136: 0.6045653588 | M136: 0.6050794669 | N136: 0.6055927974 | O136: 0.6061053514

Sheet Cobija (2)
B2: FICHA TECNICA DEL SISTEMA AISLADO
B4: Departamento | C4: Pando
B5: Provincia | C5: Nicolas Suarez
B6: Sistema Eléctrico | C6: Cobija
B7: Empresa | C7: ENDE
B8: Combustible | C8: Diesel
B9: Consumo especifico (lts/kWh) (*) | C9: =SUM(F20:H20)/SUM(F19:H19) -> 0.2660662575
B10: Energía Alternativa | C10: Solar
B11: Potencia Instalada MW | C11: 5.1
B12: Potencia a Temp. Media (MW) | C12: 5.1
B13: % Crecimiento Acumulativo Anual (**) | C13: =((H17/D17)^(1/4))-1 -> 0.0497491461
B14: Factor Ʃ(Energía Vendida)/Ʃ(Generación Total - Bruta) | C14: =SUM(D21:H21)/SUM(D17:H17) -> 0.832703842
C16: Unidades | D16: 2014 | E16: =+D16+1 -> 2015 | F16: =+E16+1 -> 2016 | G16: 2017 | H16: 2018 | I16: 2019 | J16: 2020 | K16: 2021 | L16: 2022 | M16: 2023 | N16: 2024 | O16: 2025
B17: Generación Total | C17: MWh | D17: =+D18+D19 -> 52004.8047 | E17: =+E18+E19 -> 60848.55679 | F17: 61362.61289 | G17: 62745.2016 | H17: 63151.7791 | I17: =H17*(1+$C$13) -> 66293.52619 | J17: =I17*(1+$C$13) -> 69591.57251 | K17: 73053.69381 | L17: 76688.0527 | M17: 80503.21784 | N17: 84508.18418 | O17: 88712.39419
B18: Generación Energía Renovable | C18: MWh | D18: =+Datos!D37 -> 0 | E18: =+Datos!E37 -> 4794.375501 | F18: =+Datos!F37 -> 5627.8184 | G18: =+Datos!G37 -> 5776.1256 | H18: =+Datos!H37 -> 5319.8761 | I18: =AVERAGE(F18:H18) -> 5574.6067 | J18: =AVERAGE(G18:I18) -> 5556.869467 | K18: 5483.784089 | L18: 5538.420085 | M18: 5526.35788 | N18: 5516.187351 | O18: 5526.988439
B19: Generación Fósil | C19: MWh | D19: =+Datos!D38 -> 52004.8047 | E19: =+Datos!E38 -> 56054.18129 | F19: =+Datos!F38 -> 55734.79449 | G19: =+Datos!G38 -> 56969.076 | H19: =+Datos!H38 -> 57831.903 | I19: =+I17-I18 -> 60718.91949 | J19: =+J17-J18 -> 64034.70304 | K19: 67569.90972 | L19: 71149.63261 | M19: 74976.85996 | N19: 78991.99683 | O19: 83185.40575
B20: Combustible Fósil | C20: Miles de Litros | D20: =+Datos!D88 -> 13406.099 | E20: =+Datos!E88 -> 14382.121 | F20: =+Datos!F88 -> 14611.595 | G20: =+Datos!G88 -> 14853.70102 | H20: =+Datos!H88 -> 15908.519 | I20: =I19*$C$9 -> 16155.25567 | J20: =J19*$C$9 -> 17037.47379 | K20: 17978.073 | L20: 18930.51647 | M20: 19948.81253 | N20: 21017.10497 | O20: 22132.82959
B21: Energía Vendida | C21: MWh | D21: =+Datos!D56 -> 42283.49869 | E21: =+Datos!E56 -> 48572.56787 | F21: =+Datos!F56 -> 51457.802 | G21: =+Datos!G56 -> 52482.94116 | H21: =+Datos!H56 -> 55108.401 | I21: =+I17*$C$14 -> 55202.87395 | J21: =+J17*$C$14 -> 57949.16979 | K21: 60832.09151 | L21: 63858.43612 | M21: 67035.33878 | N21: 70370.28965 | O21: 73871.15147
B22: Cantidad de Usuarios | D22: =+Datos!D72 -> 13895 | E22: =+Datos!E72 -> 14516 | F22: =+Datos!F72 -> 15424 | G22: =+Datos!G72 -> 15589 | H22: =+Datos!H72 -> 17092
B23: Consumo por usuario (***) | C23: kWh/usuario-mes | D23: =(D21*1000/D22)/12 -> 253.5894128 | E23: =(E21*1000/E22)/12 -> 278.8449979 | F23: =(F21*1000/F22)/12 -> 278.0180347 | G23: =(G21*1000/G22)/12 -> 280.5554192 | H23: =(H21*1000/H22)/12 -> 268.6851597
B24: Demanda Máxima | C24: MW | D24: =+Datos!D110 -> 0 | E24: =+Datos!E110 -> 0 | F24: =+Datos!F110 -> 11.57 | G24: =+Datos!G110 -> 11.45 | H24: =+Datos!H110 -> 12.36
B25: Potencia Instalada | C25: MW | D25: =+Datos!D4 -> 20.61 | E25: =+Datos!E4 -> 25 | F25: =+Datos!F4 -> 25 | G25: =+Datos!G4 -> 24.16 | H25: =+Datos!H4 -> 22.56
B26: Pot. Efectiva a Temp. Media | C26: MW | D26: =+Datos!D20 -> 15.96 | E26: =+Datos!E20 -> 19.26 | F26: =+Datos!F20 -> 19.66 | G26: =+Datos!G20 -> 19.2 | H26: =+Datos!H20 -> 19.5
B27: Factor de Planta (****) | D27: =D19/(D26*8760) -> 0.3719687682 | E27: =E19/(E26*8760) -> 0.3322367156 | F27: =F19/(F26*8760) -> 0.3236225566 | G27: =G19/(G26*8760) -> 0.3387145405 | H27: =H19/(H26*8760) -> 0.3385546365
B29: (*) Factor Ʃ(Combustible Fósil)/Ʃ(Generación) - Consideramos los tres últimos años, por tecnología
B30: (**) F = C*(1+i)^n - i = ((F/C)^(1/n))-1
B31: (***) Energía Vendida año i / Cantidad Usuarios año i
B32: (****) Generación Fósil año i / ((Pot. Efectiva a Temp. Media año i) * 8760)
B34: CALCULOS LINEA DE BASE | E34: Factores de Emisiones | H34: Dato obtenido de calculo de variables técnicas
B35: Categoría | C35: Gran Escala | E35: Gas Natural | F35: =54300*0.00000105506 -> 0.057289758 | G35: gCO2/BTU
B36: Metodología Aplicable | C36: AM0045 | E36: Diesel | F36: =72600*0.00000105506 -> 0.076597356 | G36: gCO2/BTU
B37: PCI (Diesel BTU/litro) = | C37: 33710
E40: Ecuación (1) | I40: Ecuación (8)
B43: Donde
B44: GEN j,bl = | C44: MWh | D44: Electricidad (MWh) generada por el sistema aislado de la fuente j (gas natural o diésel), el los últimos tres años previo a la implementación del proyecto
B45: F i,j,bl = | C45: MMBTU | D45: Cantidad de Combustible i (masa o volumen) consumido por la fuente j (planta)
B46: EF bl ini = | C46: tCO2/MWh | D46: Línea de Base del Factor de Emisiones del sistema aislado (tCO2e/MWh) al momento de la interconexión a la red
B47: COEF i,j = | C47: gCO2/BTU | D47: Coefiente de emisiones de CO2 del combustible
B48: BE y = | C48: tCO2/año | D48: Línea de Base de emisiones
B49: EG y = | C49: MWh | D49: Electricidad abastecida al sistema Aislado en el año y
D51: Histórico | I51: Proyectado
C52: Unidades | D52: 2014 | E52: =+D52+1 -> 2015 | F52: =+E52+1 -> 2016 | G52: 2017 | H52: 2018 | I52: 2019 | J52: 2020 | K52: 2021 | L52: 2022 | M52: 2023 | N52: 2024 | O52: 2025
B53: EG y = | C53: MWh | D53: =+D17 -> 52004.8047 | E53: =+E17 -> 60848.55679 | F53: 61362.61289 | G53: 62745.2016 | H53: 63151.7791 | I53: 66293.52619 | J53: 69591.57251 | K53: 73053.69381 | L53: 76688.0527 | M53: 80503.21784 | N53: 84508.18418 | O53: 88712.39419
B54: GEN j,bl = | C54: MWh | D54: =+D19 -> 52004.8047 | E54: =+E19 -> 56054.18129 | F54: 55734.79449 | G54: 56969.076 | H54: 57831.903 | I54: 60718.91949 | J54: 64034.70304 | K54: 67569.90972 | L54: 71149.63261 | M54: 74976.85996 | N54: 78991.99683 | O54: 83185.40575
B55: F i,j,bl = | C55: Miles Litros | D55: =+D20 -> 13406.099 | E55: 14382.121 | F55: 14611.595 | G55: 14853.70102 | H55: 15908.519 | I55: 16155.25567 | J55: 17037.47379 | K55: 17978.073 | L55: 18930.51647 | M55: 19948.81253 | N55: 21017.10497 | O55: 22132.82959
B56: F i,j,bl = | C56: MMBTU | D56: =D55*$C$37/1000 -> 451919.5973 | E56: =E55*$C$37/1000 -> 484821.2989 | F56: 492556.8674 | G56: 500718.2615 | H56: 536276.1755 | I56: 544593.6686 | J56: 574333.2414 | K56: 606040.8409 | L56: 638147.7103 | M56: 672474.4703 | N56: 708486.6086 | O56: 746097.6854
B57: EF bl = | C57: tCO2/MWh | F57: =SUM(D56:F56)*$F$36/SUM(D54:F54) -> 0.6684040707 | G57: =SUM(E56:G56)*$F$36/SUM(E54:G54) -> 0.6708911195 | H57: 0.6870088509 | I57: =+H57 -> 0.6870088509 | J57: =+I57 -> 0.6870088509 | K57: 0.6870088509 | L57: 0.6870088509 | M57: 0.6870088509 | N57: 0.6870088509 | O57: 0.6870088509
B58: BE y = | C58: tCO2/año | D58: =+F57*D54 -> 34760.22316 | E58: =+F57*E54 -> 37466.84296 | F58: =+F57*F54 -> 37253.36352 | G58: =+G57*G54 -> 38220.04718 | H58: =+H57*H54 -> 39731.02923 | I58: 41714.43511 | J58: 43992.40775 | K58: 46421.12604 | L58: 48880.42735 | M58: 51509.76641 | N58: 54268.20098 | O58: 57149.11002
B59: EF bl ini = | C59: tCO2/MWh | D59: =+D58/D53 -> 0.6684040707 | E59: =+E58/E53 -> 0.615739221 | F59: 0.6071019757 | G59: 0.6091309965 | H59: 0.6291355492 | I59: 0.6292384416 | J59: =+J58/J53 -> 0.6321513679 | K59: =+K58/K53 -> 0.635438451 | L59: =+L58/L53 -> 0.6373929918 | M59: =+M58/M53 -> 0.6398472979 | N59: 0.6421650341 | O59: =+O58/O53 -> 0.644206602

Sheet Analisis
B2: FICHA TECNICA DEL SISTEMA AISLADO
B4: Departamento | C4: Pando | D4: =+'Las Misiones'!C3 -> Santa Cruz | E4: =+'German Busch'!C4 -> Santa Cruz | F4: =+Huacaraje!C4 -> Beni
B5: Provincia | C5: Nicolas Suarez | D5: =+'Las Misiones'!C4 -> Guarayos | E5: =+'German Busch'!C5 -> German Bush | F5: =+Huacaraje!C5 -> Itenez
B6: Sistema Eléctrico | C6: Cobija | D6: =+'Las Misiones'!C5 -> Las Misiones | E6: =+'German Busch'!C6 -> German Busch | F6: =+Huacaraje!C6 -> Huacaraje
B7: Empresa | C7: ENDE | D7: =+'Las Misiones'!C6 -> CRE Ltda. | E7: =+'German Busch'!C7 -> CRE Ltda. | F7: =+Huacaraje!C7 -> ENDE DELBENI S.A.M.
B8: Combustible | C8: Diesel | D8: =+'Las Misiones'!C7 -> Gas/Diesel | E8: =+'German Busch'!C8 -> Gas | F8: =+Huacaraje!C8 -> Diesel
B9: Consumo especifico (pc/kWh) (*) | D9: =+'Las Misiones'!C8 -> 13.23130259 | E9: =+'German Busch'!C9 -> 13.47506885
B10: Consumo especifico (lts/kWh) (*) | C10: =+Cobija!C9 -> 0.2660662575 | D10: =+'Las Misiones'!C9 -> 0.2771806554 | F10: =+Huacaraje!C9 -> 0.3657595495
B11: Energía Alternativa | C11: =+Cobija!C10 -> Solar
B12: Potencia Instalada MW | C12: =+Cobija!C11 -> 5.1
B13: Potencia a Temp. Media (MW) | C13: =+Cobija!C12 -> 5.1
B14: % Crecimiento Acumulativo Anual (**) | C14: =+Cobija!C13 -> 0.0497491461 | D14: =+'Las Misiones'!C10 -> 0.06255341609 | E14: =+'German Busch'!C10 -> 0.055 | F14: =+Huacaraje!C10 -> 0.001514992038
B15: Factor Ʃ(Energía Vendida)/Ʃ(Generación Total - Bruta) | C15: =+Cobija!C14 -> 0.832703842 | D15: =+'Las Misiones'!C11 -> 0.8423761643 | E15: =+'German Busch'!C11 -> 0.918382438 | F15: =+Huacaraje!C11 -> 0.8618397074
B16: Factor Ʃ(Generacion Total - Bruta)/Ʃ(Generación Diesel) | D16: =+'Las Misiones'!C12 -> 0.1605117573
C19: 2018
C20: =+C6 -> Cobija | D20: =+D6 -> Las Misiones | E20: =+E6 -> German Busch | F20: =+F6 -> Huacaraje
B21: Generación Total | C21: =+Cobija!H17 -> 63151.7791 | D21: =+'Las Misiones'!H15 -> 58424.89577 | E21: =+'German Busch'!H14 -> 57411.821 | F21: =+Huacaraje!H14 -> 680.3341417 | G21: MWh
B22: Generación Energía Renovable | C22: =+Cobija!H18 -> 5319.8761 | D22: =+'Las Misiones'!H16 -> 0 | E22: =+'German Busch'!H15 -> 0 | F22: =+Huacaraje!H15 -> 0 | G22: MWh
B23: Generación Fósil | C23: =+Cobija!H19 -> 57831.903 | D23: =+'Las Misiones'!H17 -> 58424.89577 | E23: =+'German Busch'!H16 -> 57411.821 | F23: =+Huacaraje!H16 -> 680.3341417 | G23: MWh
B24: Generación Fósil Gas | D24: =+'Las Misiones'!H18 -> 45374.3242 | G24: MWh
B25: Generación Fósil Diesel | D25: =+'Las Misiones'!H19 -> 13050.57157 | G25: MWh
B26: Combustible Fósil gas natural | D26: =+'Las Misiones'!H20 -> 640147.5933 | E26: =+'German Busch'!H17 -> 787872.444 | G26: MPC
B27: Combustible Fósil Diesel | C27: =+Cobija!H20 -> 15908.519 | D27: =+'Las Misiones'!H21 -> 3617.36598 | F27: =+Huacaraje!H17 -> 212.65 | G27: Miles de Litros
B28: Energía Vendida | C28: =+Cobija!H21 -> 55108.401 | D28: =+'Las Misiones'!H22 -> 52336.572 | E28: =+'German Busch'!H18 -> 52818.988 | F28: =+Huacaraje!H18 -> 596.267 | G28: MWh
B29: Cantidad de Usuarios | C29: =+Cobija!H22 -> 17092 | D29: =+'Las Misiones'!H23 -> 28263 | E29: =+'German Busch'!H19 -> 10771 | F29: =+Huacaraje!H19 -> 505
B30: Consumo por usuario (***) | C30: =+Cobija!H23 -> 268.6851597 | D30: =+'Las Misiones'!H24 -> 154.3141563 | E30: =+'German Busch'!H20 -> 408.651224 | F30: =+Huacaraje!H20 -> 98.39389439 | G30: kWh/usuario-mes
B31: Demanda Máxima | C31: =+Cobija!H24 -> 12.36 | D31: =+'Las Misiones'!H25 -> 11.73985521 | E31: =+'German Busch'!H21 -> 10.25271 | F31: =+Huacaraje!H21 -> 0.159 | G31: MW
B32: Potencia Instalada | C32: =+Cobija!H25 -> 22.56 | D32: =+'Las Misiones'!H26 -> 21.35 | E32: =+'German Busch'!H22 -> 23.2 | F32: =+Huacaraje!H22 -> 0.464 | G32: MW
B33: Pot. Efectiva a Temp. Media | C33: =+Cobija!H26 -> 19.5 | D33: =+'Las Misiones'!H27 -> 19.05 | E33: =+'German Busch'!H23 -> 19.1 | F33: =+Huacaraje!H23 -> 0.398 | G33: MW
B34: Factor de Planta (****) | C34: =+Cobija!H27 -> 0.3385546365 | D34: =+'Las Misiones'!H28 -> 0.3501054409 | E34: =+'German Busch'!H24 -> 0.3431340756 | F34: =+Huacaraje!H24 -> 0.1951349618
B35: (*) Factor Ʃ(Combustible Fósil)/Ʃ(Generación) - Consideramos los tres últimos años, por tecnología
B36: (**) F = C*(1+i)^n - i = ((F/C)^(1/n))-1
B37: (***) Energía Vendida año i / Cantidad Usuarios año i
B38: (****) Generación Fósil año i / ((Pot. Efectiva a Temp. Media año i) * 8760)

Sheet Datos
D2: Potencia Instalada (MW)
B3: Sistema | D3: 2014 | E3: 2015 | F3: 2016 | G3: 2017 | H3: 2018
B4: Cobija | C4: MW | D4: 20.61 | E4: 25 | F4: 25 | G4: 24.16 | H4: 22.56
B5: Riberalta | C5: MW | D5: 10.08 | E5: 10.08 | F5: 15.75 | G5: 16.05 | H5: 16.12
B6: San Ignacio de Velasco | C6: MW | D6: 8.204 | E6: 8.204 | F6: 8.204 | G6: 8.204 | H6: 7.84
B7: Las Misiones | C7: MW | D7: 17.15 | E7: 17.15 | F7: 21.35 | G7: 21.35 | H7: 21.35
B8: Valles Cruceños | C8: MW | D8: 7.64 | E8: 7.64 | F8: 9.64 | G8: 11.638 | H8: 11.638
B9: Camiri | C9: MW | D9: 7.25 | E9: 7.9 | F9: 9.06 | G9: 10.866 | H9: 12.674
B10: German Busch | C10: MW | D10: 21 | E10: 21 | F10: 21 | G10: 21 | H10: 23.2
B11: Bermejo | C11: MW | D11: 10.199 | E11: 9.23 | F11: 12.22 | G11: 15.419 | H11: 14.444
B12: Chiquitos | C12: MW | D12: 5.84 | E12: 5.84 | F12: 5.84 | G12: 5.84 | H12: 7.54
B13: Huacaraje | C13: MW | F13: 0.57 | G13: 0.695 | H13: 0.464
B14: Bella Vista | C14: MW | G14: 0.766 | H14: 1.426
B15: El Sena | C15: MW | E15: 1.42 | F15: 2.216 | G15: 2.216 | H15: 2.216
D18: Potencia Efectiva a temperatura media (MW)
B19: Sistema | D19: 2014 | E19: 2015 | F19: 2016 | G19: 2017 | H19: 2018
B20: Cobija | C20: MW | D20: 15.96 | E20: 19.26 | F20: 19.66 | G20: 19.2 | H20: 19.5
B21: Riberalta | C21: MW | D21: 9.27 | E21: 9.27 | F21: 15.26 | G21: 15.71 | H21: 15.78
B22: San Ignacio de Velasco | C22: MW | D22: 7.101 | E22: 7.101 | F22: 7.101 | G22: 7.101 | H22: 6.792
B23: Las Misiones | C23: MW | D23: 15 | E23: 15 | F23: 19.05 | G23: 19.05 | H23: 19.05
B24: Valles Cruceños | C24: MW | D24: 6.48 | E24: 6.48 | F24: 8.13 | G24: 8.5 | H24: 9.56
B25: Camiri | C25: MW | D25: 6.5 | E25: 7.1 | F25: 8.25 | G25: 10 | H25: 11.75
B26: German Busch | C26: MW | D26: 17.4 | E26: 17.4 | F26: 17.4 | G26: 17.4 | H26: 19.1
B27: Bermejo | C27: MW | D27: 8.15 | E27: 7.35 | F27: 9.6 | G27: 12.4 | H27: 11.55
B28: Chiquitos | C28: MW | D28: 4.84 | E28: 4.84 | F28: 4.84 | G28: 4.84 | H28: 7.2
B29: Huacaraje | C29: MW | F29: 0.13 | G29: 0.648 | H29: 0.398
B30: Bella Vista | C30: MW | G30: 0.668 | H30: 1.111
B31: El Sena | C31: MW | E31: 1.1 | F31: 1.3 | G31: 1.3 | H31: 1.3
D34: Generacion Bruta (MWh)
B35: Sistema | D35: 2014 | E35: 2015 | F35: 2016 | G35: 2017 | H35: 2018
B36: Cobija
B37: Cobija Planta Solar | C37: MWh | D37: 0 | E37: 4794.375501 | F37: 5627.8184 | G37: 5776.1256 | H37: 5319.8761
B38: Cobija Combustioble Fosil | C38: MWh | D38: 52004.8047 | E38: 56054.18129 | F38: 55734.79449 | G38: 56969.076 | H38: 57831.903
B39: Riberalta | C39: MWh | D39: 39754.1004 | E39: 44000 | F39: 47860 | G39: 49359.07 | H39: 54122.22
B40: San Ignacio de Velasco | C40: MWh | D40: 20118.833 | E40: 22009.939 | F40: 23362.836 | G40: 24446.847 | H40: 25906.172
B41: Las Misiones | C41: MWh | D41: 45834.74914 | E41: 51150.008 | F41: 55241.41 | G41: 59494.526 | H41: 58424.89577
B42: Valles Cruceños | C42: MWh | D42: 24962.853 | E42: 27356.741 | F42: 30774.99453 | G42: 33037.838 | H42: 34243.891
B43: Camiri | C43: MWh | D43: 26931.019 | E43: 29769.716 | F43: 31023.122 | G43: 32518.519 | H43: 33217.41659
B44: German Busch | C44: MWh | D44: 57328.465 | E44: 60886.548 | F44: 60284.14 | G44: 55369.353 | H44: 57411.821
B45: Bermejo | C45: MWh | D45: 17625.435 | E45: 24367.994 | F45: 25069.998 | G45: 27032.792 | H45: 28138.757
B46: Chiquitos | C46: MWh | D46: 16495.10006 | E46: 18492.52734 | F46: 19606.297 | G46: 21045.85406 | H46: 22087.9751
B47: Huacaraje | C47: MWh | F47: 190 | G47: 679.305 | H47: 680.3341417
B48: Bella Vista | C48: MWh | F48: 200 | G48: 833.629 | H48: 901.4010573
B49: El Sena
B50: El Sena Planta Solar | C50: MWh | H50: 95.87
B51: El Sena Combustioble Fosil | C51: MWh | D51: 646.0049 | E51: 1248.1834 | F51: 1677.7594 | G51: 1881.0661 | H51: 2213.192
D54: Energia Vendida (MWh)
B55: Sistema | D55: 2014 | E55: 2015 | F55: 2016 | G55: 2017 | H55: 2018
B56: Cobija | C56: MWh | D56: 42283.49869 | E56: 48572.56787 | F56: 51457.802 | G56: 52482.94116 | H56: 55108.401
B57: Riberalta | C57: MWh | D57: 35106.71 | E57: 39792.533 | F57: 42339.17 | G57: 43252.69 | H57: 47213.73
B58: San Ignacio de Velasco | C58: MWh | D58: 17541.051 | E58: 19341.801 | F58: 20551.661 | G58: 21797.431 | H58: 22765.302
B59: Las Misiones | C59: MWh | D59: 37833.119 | E59: 41946.924 | F59: 46627.073 | G59: 48820.517 | H59: 52336.572
B60: Valles Cruceños | C60: MWh | D60: 21245.181 | E60: 23113.885 | F60: 25842.942 | G60: 27838.267 | H60: 28619.4
B61: Camiri | C61: MWh | D61: 23118.461 | E61: 25565.341 | F61: 26937.045 | G61: 27085.859 | H61: 26869.606
B62: German Busch | C62: MWh | D62: 49864.025 | E62: 55849.83 | F62: 55786.36 | G62: 50334.797 | H62: 52818.988
B63: Bermejo | C63: MWh | D63: 19097.197 | E63: 19975.205 | F63: 20153.143 | G63: 21583.881 | H63: 22919.561
B64: Chiquitos | C64: MWh | D64: 13815.353 | E64: 15456.422 | F64: 16493.128 | G64: 17568.087 | H64: 18401.253
B65: Huacaraje | C65: MWh | G65: 575.524 | H65: 596.267
B66: Bella Vista | C66: MWh | G66: 697.504 | H66: 714.517
B67: El Sena | C67: MWh | D67: 327.1148 | E67: 869.546 | F67: 1342.3541 | G67: 1672.1506 | H67: 2105.635
D70: Cantidad usuarios
B71: Sistema | D71: 2014 | E71: 2015 | F71: 2016 | G71: 2017 | H71: 2018
B72: Cobija | D72: 13895 | E72: 14516 | F72: 15424 | G72: 15589 | H72: 17092
B73: Riberalta | D73: 17883 | E73: 19044 | F73: 19779 | G73: 20120 | H73: 21407
B74: San Ignacio de Velasco | D74: 8812 | E74: 9304 | F74: 10720 | G74: 11519 | H74: 12184
B75: Las Misiones | D75: 18188 | E75: 20295 | F75: 22711 | G75: 25616 | H75: 28263
B76: Valles Cruceños | D76: 18160 | E76: 20322 | F76: 21825 | G76: 22984 | H76: 23104
B77: Camiri | D77: 11277 | E77: 11944 | F77: 13230 | G77: 14167 | H77: 14957
B78: German Busch | D78: 8646 | E78: 9004 | F78: 9991 | G78: 10406 | H78: 10771
B79: Bermejo | D79: 10731 | E79: 11261 | F79: 11717 | G79: 12254 | H79: 12941
B80: Chiquitos | D80: 6760 | E80: 7040 | F80: 7747 | G80: 8138 | H80: 8470
B81: Huacaraje | F81: 406 | G81: 490 | H81: 505
B82: Bella Vista | G82: 86.36750867 | H82: 84.81920703
B83: El Sena | D83: 238 | E83: 447 | F83: 647 | G83: 883 | H83: 976
D86: Consumo Combustible Fosil
B87: Sistema | D87: 2014 | E87: 2015 | F87: 2016 | G87: 2017 | H87: 2018
B88: Cobija | C88: Litros | D88: 13406.099 | E88: 14382.121 | F88: 14611.595 | G88: 14853.70102 | H88: 15908.519
B89: Riberalta | C89: Litros | D89: 11267.231 | E89: 15214.2 | F89: 14037.7 | G89: 14174.208 | H89: 15701.603
B90: San Ignacio de Velasco | C90: Litros | D90: 5569.661 | E90: 6107.582 | F90: 6427.6 | G90: 6754.024 | H90: 7250.985
B91: Las Misiones
B92: Las Misiones Gas Natural | C92: mpc | D92: 571963.428 | E92: 612920.549 | F92: 663158.386 | G92: 620081.935 | H92: 640147.5933
B93: Las Misiones Diesel | C93: Litros | D93: 116.316 | E93: 412.529 | F93: 579.412 | G93: 3507.278001 | H93: 3617.36598
B94: Valles Cruceños
B95: Valles Gas Natural | C95: mpc | D95: 284155.401 | E95: 313266.45 | F95: 353773.35 | G95: 355513.2846 | H95: 360015.7066
B96: Valles Diesel | C96: Litros | D96: 0 | E96: 0 | F96: 30.18 | G96: 1.38 | H96: 5.15
B97: Camiri
B98: Camiri Gas Natural | C98: mpc | D98: 294214.1403 | E98: 320543.5509 | F98: 324808.4193 | G98: 317579.2717 | H98: 339259.1858
B99: Camiri Diesel | C99: Litros | D99: 0 | E99: 26.829 | F99: 13.922 | G99: 0 | H99: 0
B100: German Busch | C100: mpc | D100: 744218.667 | E100: 784928.69 | F100: 795439.492 | G100: 748755.086 | H100: 787872.444
B101: Bermejo | C101: mpc | D101: 0 | E101: 282967.2 | F101: 292904.17 | G101: 368663.229 | H101: 401645.362
B102: Chiquitos | C102: mpc | D102: 178080.859 | E102: 202608.063 | F102: 217565.0922 | G102: 229197.2326 | H102: 238334.3366
B103: Huacaraje | C103: Litros | G103: 284.651 | H103: 212.65
B104: Bella Vista | C104: Litros | G104: 337.159 | H104: 263.796
B105: El Sena | C105: Litros | D105: 207.085 | E105: 380.248 | F105: 518.607001 | G105: 584.762 | H105: 697.834
D108: Demanda Maxima
B109: Sistema | D109: 2014 | E109: 2015 | F109: 2016 | G109: 2017 | H109: 2018
B110: Cobija | C110: MW | F110: 11.57 | G110: 11.45 | H110: 12.36
B111: Riberalta | C111: MW | F111: 8.922 | G111: 9.155 | H111: 9.824
B112: San Ignacio de Velasco | C112: MW | F112: 4.57945 | G112: 4.665586 | H112: 5.050678
B113: Las Misiones | C113: MW | F113: 10.15507 | G113: 11.06016641 | H113: 11.73985521
B114: Valles Cruceños | C114: MW | F114: 6.28572 | G114: 6.443231 | H114: 6.340804
B115: Camiri | C115: MW | F115: 6.075 | G115: 6.03993 | H115: 6.378
B116: German Busch | C116: MW | F116: 10.94204 | G116: 9.697378 | H116: 10.25271
B117: Bermejo | C117: MW | F117: 5.91 | G117: 5.96 | H117: 6.1
B118: Chiquitos | C118: MW | F118: 4.09624 | G118: 4.523989 | H118: 4.380218
B119: Huacaraje | C119: MW | G119: 0.169 | H119: 0.159
B120: Bella Vista | C120: MW | G120: 0.195 | H120: 0.202
B121: El Sena | C121: MW | F121: 0.431 | G121: 0.445 | H121: 0.673

Sheet Cobija
B2: FICHA TECNICA DEL SISTEMA AISLADO
B4: Departamento | C4: Pando
B5: Provincia | C5: Nicolas Suarez
B6: Sistema Eléctrico | C6: Cobija
B7: Empresa | C7: ENDE
B8: Combustible | C8: Diesel
B9: Consumo especifico (lts/kWh) (*) | C9: =SUM(F20:H20)/SUM(F19:H19) -> 0.2660662575
B10: Energía Alternativa | C10: Solar
B11: Potencia Instalada MW | C11: 5.1
B12: Potencia a Temp. Media (MW) | C12: 5.1
B13: % Crecimiento Acumulativo Anual (**) | C13: =((H17/D17)^(1/4))-1 -> 0.0497491461
B14: Factor Ʃ(Energía Vendida)/Ʃ(Generación Total - Bruta) | C14: =SUM(D21:H21)/SUM(D17:H17) -> 0.832703842
C16: Unidades | D16: 2014 | E16: =+D16+1 -> 2015 | F16: =+E16+1 -> 2016 | G16: 2017 | H16: 2018 | I16: 2019 | J16: 2020 | K16: 2021 | L16: 2022 | M16: 2023 | N16: 2024 | O16: 2025
B17: Generación Total | C17: MWh | D17: =+D18+D19 -> 52004.8047 | E17: =+E18+E19 -> 60848.55679 | F17: 61362.61289 | G17: 62745.2016 | H17: 63151.7791 | I17: =H17*(1+$C$13) -> 66293.52619 | J17: =I17*(1+$C$13) -> 69591.57251 | K17: 73053.69381 | L17: 76688.0527 | M17: 80503.21784 | N17: 84508.18418 | O17: 88712.39419
B18: Generación Energía Renovable | C18: MWh | D18: =+Datos!D37 -> 0 | E18: =+Datos!E37 -> 4794.375501 | F18: =+Datos!F37 -> 5627.8184 | G18: =+Datos!G37 -> 5776.1256 | H18: =+Datos!H37 -> 5319.8761 | I18: =AVERAGE(F18:H18) -> 5574.6067 | J18: =AVERAGE(G18:I18) -> 5556.869467 | K18: 5483.784089 | L18: 5538.420085 | M18: 5526.35788 | N18: 5516.187351 | O18: 5526.988439
B19: Generación Fósil | C19: MWh | D19: =+Datos!D38 -> 52004.8047 | E19: =+Datos!E38 -> 56054.18129 | F19: =+Datos!F38 -> 55734.79449 | G19: =+Datos!G38 -> 56969.076 | H19: =+Datos!H38 -> 57831.903 | I19: =+I17-I18 -> 60718.91949 | J19: =+J17-J18 -> 64034.70304 | K19: 67569.90972 | L19: 71149.63261 | M19: 74976.85996 | N19: 78991.99683 | O19: 83185.40575
B20: Combustible Fósil | C20: Miles de Litros | D20: =+Datos!D88 -> 13406.099 | E20: =+Datos!E88 -> 14382.121 | F20: =+Datos!F88 -> 14611.595 | G20: =+Datos!G88 -> 14853.70102 | H20: =+Datos!H88 -> 15908.519 | I20: =I19*$C$9 -> 16155.25567 | J20: =J19*$C$9 -> 17037.47379 | K20: 17978.073 | L20: 18930.51647 | M20: 19948.81253 | N20: 21017.10497 | O20: 22132.82959
B21: Energía Vendida | C21: MWh | D21: =+Datos!D56 -> 42283.49869 | E21: =+Datos!E56 -> 48572.56787 | F21: =+Datos!F56 -> 51457.802 | G21: =+Datos!G56 -> 52482.94116 | H21: =+Datos!H56 -> 55108.401 | I21: =+I17*$C$14 -> 55202.87395 | J21: =+J17*$C$14 -> 57949.16979 | K21: 60832.09151 | L21: 63858.43612 | M21: 67035.33878 | N21: 70370.28965 | O21: 73871.15147
B22: Cantidad de Usuarios | D22: =+Datos!D72 -> 13895 | E22: =+Datos!E72 -> 14516 | F22: =+Datos!F72 -> 15424 | G22: =+Datos!G72 -> 15589 | H22: =+Datos!H72 -> 17092
B23: Consumo por usuario (***) | C23: kWh/usuario-mes | D23: =(D21*1000/D22)/12 -> 253.5894128 | E23: =(E21*1000/E22)/12 -> 278.8449979 | F23: =(F21*1000/F22)/12 -> 278.0180347 | G23: =(G21*1000/G22)/12 -> 280.5554192 | H23: =(H21*1000/H22)/12 -> 268.6851597
B24: Demanda Máxima | C24: MW | D24: =+Datos!D110 -> 0 | E24: =+Datos!E110 -> 0 | F24: =+Datos!F110 -> 11.57 | G24: =+Datos!G110 -> 11.45 | H24: =+Datos!H110 -> 12.36
B25: Potencia Instalada | C25: MW | D25: =+Datos!D4 -> 20.61 | E25: =+Datos!E4 -> 25 | F25: =+Datos!F4 -> 25 | G25: =+Datos!G4 -> 24.16 | H25: =+Datos!H4 -> 22.56
B26: Pot. Efectiva a Temp. Media | C26: MW | D26: =+Datos!D20 -> 15.96 | E26: =+Datos!E20 -> 19.26 | F26: =+Datos!F20 -> 19.66 | G26: =+Datos!G20 -> 19.2 | H26: =+Datos!H20 -> 19.5
B27: Factor de Planta (****) | D27: =D19/(D26*8760) -> 0.3719687682 | E27: =E19/(E26*8760) -> 0.3322367156 | F27: =F19/(F26*8760) -> 0.3236225566 | G27: =G19/(G26*8760) -> 0.3387145405 | H27: =H19/(H26*8760) -> 0.3385546365
B29: (*) Factor Ʃ(Combustible Fósil)/Ʃ(Generación) - Consideramos los tres últimos años, por tecnología
B30: (**) F = C*(1+i)^n - i = ((F/C)^(1/n))-1
B31: (***) Energía Vendida año i / Cantidad Usuarios año i
B32: (****) Generación Fósil año i / ((Pot. Efectiva a Temp. Media año i) * 8760)
B34: CALCULOS LINEA DE BASE | E34: Factores de Emisiones | H34: Dato obtenido de calculo de variables técnicas
B35: Categoría | C35: Gran Escala | E35: Gas Natural | F35: =54300*0.00000105506 -> 0.057289758 | G35: gCO2/BTU
B36: Metodología Aplicable | C36: AM0045 | E36: Diesel | F36: =72600*0.00000105506 -> 0.076597356 | G36: gCO2/BTU
B37: PCI (Diesel BTU/litro) = | C37: 33710
E40: Ecuación (1) | I40: Ecuación (8)
B43: Donde
B44: GEN j,bl = | C44: MWh | D44: Electricidad (MWh) generada por el sistema aislado de la fuente j (gas natural o diésel), el los últimos tres años previo a la implementación del proyecto
B45: F i,j,bl = | C45: MMBTU | D45: Cantidad de Combustible i (masa o volumen) consumido por la fuente j (planta)
B46: EF bl ini = | C46: tCO2/MWh | D46: Línea de Base del Factor de Emisiones del sistema aislado (tCO2e/MWh) al momento de la interconexión a la red
B47: COEF i,j = | C47: gCO2/BTU | D47: Coefiente de emisiones de CO2 del combustible
B48: BE y = | C48: tCO2/año | D48: Línea de Base de emisiones
B49: EG y = | C49: MWh | D49: Electricidad abastecida al sistema Aislado en el año y
D51: Histórico | I51: Proyectado
C52: Unidades | D52: 2014 | E52: =+D52+1 -> 2015 | F52: =+E52+1 -> 2016 | G52: =+F52+1 -> 2017 | H52: =+G52+1 -> 2018 | I52: =+H52+1 -> 2019 | J52: =+I52+1 -> 2020 | K52: =+J52+1 -> 2021 | L52: =+K52+1 -> 2022 | M52: =+L52+1 -> 2023 | N52: =+M52+1 -> 2024 | O52: =+N52+1 -> 2025
B53: EG y = | C53: MWh | D53: =+D17 -> 52004.8047 | E53: =+E17 -> 60848.55679 | F53: 61362.61289 | G53: 62745.2016 | H53: 63151.7791 | I53: 66293.52619 | J53: 69591.57251 | K53: 73053.69381 | L53: 76688.0527 | M53: 80503.21784 | N53: 84508.18418 | O53: 88712.39419
B54: GEN j,bl = | C54: MWh | D54: =+D19 -> 52004.8047 | E54: =+E19 -> 56054.18129 | F54: 55734.79449 | G54: 56969.076 | H54: 57831.903 | I54: 60718.91949 | J54: 64034.70304 | K54: 67569.90972 | L54: 71149.63261 | M54: 74976.85996 | N54: 78991.99683 | O54: 83185.40575
B55: F i,j,bl = | C55: Miles Litros | D55: =+D20 -> 13406.099 | E55: =+E20 -> 14382.121 | F55: 14611.595 | G55: 14853.70102 | H55: 15908.519 | I55: 16155.25567 | J55: 17037.47379 | K55: 17978.073 | L55: 18930.51647 | M55: 19948.81253 | N55: 21017.10497 | O55: 22132.82959
B56: F i,j,bl = | C56: MMBTU | D56: =+D55*33710/1000 -> 451919.5973 | E56: =+E55*33710/1000 -> 484821.2989 | F56: 492556.8674 | G56: 500718.2615 | H56: 536276.1755 | I56: 544593.6686 | J56: 574333.2414 | K56: 606040.8409 | L56: 638147.7103 | M56: 672474.4703 | N56: 708486.6086 | O56: 746097.6854
B57: EF bl = | C57: tCO2/MWh | F57: =SUM(D56:F56)*$F$36/SUM(D54:F54) -> 0.6684040707 | G57: =SUM(E56:G56)*$F$36/SUM(E54:G54) -> 0.6708911195 | H57: =SUM(F56:H56)*$F$36/SUM(F54:H54) -> 0.6870088509 | I57: =+H57 -> 0.6870088509 | J57: 0.6870088509 | K57: 0.6870088509 | L57: 0.6870088509 | M57: 0.6870088509 | N57: 0.6870088509 | O57: 0.6870088509
B58: BE y = | C58: tCO2/año | D58: =+F57*D54 -> 34760.22316 | E58: =+F57*E54 -> 37466.84296 | F58: =+F57*F54 -> 37253.36352 | G58: =+G57*G54 -> 38220.04718 | H58: =+H57*H54 -> 39731.02923 | I58: 41714.43511 | J58: 43992.40775 | K58: 46421.12604 | L58: 48880.42735 | M58: 51509.76641 | N58: 54268.20098 | O58: 57149.11002
B59: EF bl ini = | C59: tCO2/MWh | D59: =+D58/D53 -> 0.6684040707 | E59: =+E58/E53 -> 0.615739221 | F59: 0.6071019757 | G59: 0.6091309965 | H59: 0.6291355492 | I59: =+I58/I53 -> 0.6292384416 | J59: 0.6321513679 | K59: 0.635438451 | L59: 0.6373929918 | M59: 0.6398472979 | N59: 0.6421650341 | O59: 0.644206602

Sheet Riberalta
B2: FICHA TECNICA DEL SISTEMA AISLADO
B3: Departamento | C3: Beni
B4: Provincia | C4: Vaca Diez
B5: Sistema Eléctrico | C5: Riberalta
B6: Empresa | C6: CER Ltda.
B7: Combustible | C7: Diesel
B8: Consumo especifico (lts/kWh) (*)
B9: % Crecimiento Acumulativo Anual (**)
B10: Factor Ʃ(Energía Vendida)/Ʃ(Generación Total - Bruta)
C12: Unidades | D12: 2014 | E12: =+D12+1 -> 2015 | F12: =+E12+1 -> 2016 | G12: 2017 | H12: 2018 | I12: 2019 | J12: 2020 | K12: 2021 | L12: 2022 | M12: 2023 | N12: 2024 | O12: 2025
B13: Generación Total | C13: MWh
B14: Generación Energía Renovable | C14: MWh
B15: Generación Fósil | C15: MWh | D15: =+Datos!D39 -> 39754.1004 | E15: =+Datos!E39 -> 44000 | F15: =+Datos!F39 -> 47860 | G15: =+Datos!G39 -> 49359.07 | H15: =+Datos!H39 -> 54122.22
B16: Combustible Fósil | C16: Miles de Litros | D16: =+Datos!D89 -> 11267.231 | E16: =+Datos!E89 -> 15214.2 | F16: =+Datos!F89 -> 14037.7 | G16: =+Datos!G89 -> 14174.208 | H16: =+Datos!H89 -> 15701.603
B17: Energía Vendida | C17: MWh | D17: =+Datos!D57 -> 35106.71 | E17: =+Datos!E57 -> 39792.533 | F17: =+Datos!F57 -> 42339.17 | G17: =+Datos!G57 -> 43252.69 | H17: =+Datos!H57 -> 47213.73
B18: Cantidad de Usuarios | D18: =+Datos!D73 -> 17883 | E18: =+Datos!E73 -> 19044 | F18: =+Datos!F73 -> 19779 | G18: =+Datos!G73 -> 20120 | H18: =+Datos!H73 -> 21407
B19: Consumo por usuario (***) | C19: kWh/usuario-mes
B20: Demanda Máxima | C20: MW | D20: =+Datos!D111 -> 0 | E20: =+Datos!E111 -> 0 | F20: =+Datos!F111 -> 8.922 | G20: =+Datos!G111 -> 9.155 | H20: =+Datos!H111 -> 9.824
B21: Potencia Instalada | C21: MW | D21: =+Datos!D5 -> 10.08 | E21: =+Datos!E5 -> 10.08 | F21: =+Datos!F5 -> 15.75 | G21: =+Datos!G5 -> 16.05 | H21: =+Datos!H5 -> 16.12
B22: Pot. Efectiva a Temp. Media | C22: MW | D22: =+Datos!D21 -> 9.27 | E22: =+Datos!E21 -> 9.27 | F22: =+Datos!F21 -> 15.26 | G22: =+Datos!G21 -> 15.71 | H22: =+Datos!H21 -> 15.78
B23: Factor de Planta (****)
B25: (*) Factor Ʃ(Combustible Fósil)/Ʃ(Generación) - Consideramos los tres últimos años, por tecnología
B26: (**) F = C*(1+i)^n - i = ((F/C)^(1/n))-1
B27: (***) Energía Vendida año i / Cantidad Usuarios año i
B28: (****) Generación Fósil año i / ((Pot. Efectiva a Temp. Media año i) * 8760)

Sheet San Ingacio Velasco
B2: FICHA TECNICA DEL SISTEMA AISLADO
B3: Departamento | C3: Santa Cruz
B4: Provincia | C4: Jose Miguel de Velasco
B5: Sistema Eléctrico | C5: San Ignacio de Velasco
B6: Empresa | C6: CRE Ltda.
B7: Combustible | C7: Diesel
B8: Consumo especifico (lts/kWh) (*)
B9: % Crecimiento Acumulativo Anual (**)
B10: Factor Ʃ(Energía Vendida)/Ʃ(Generación Total - Bruta)
C12: Unidades | D12: 2014 | E12: =+D12+1 -> 2015 | F12: =+E12+1 -> 2016 | G12: 2017 | H12: 2018 | I12: 2019 | J12: 2020 | K12: 2021 | L12: 2022 | M12: 2023 | N12: 2024 | O12: 2025
B13: Generación Total | C13: MWh
B14: Generación Energía Renovable | C14: MWh
B15: Generación Fósil | C15: MWh
B16: Combustible Fosil | C16: Miles de litros
B17: Energía Vendida | C17: MWh
B18: Cantidad de Usuarios
B19: Consumo por usuario (***) | C19: kWh/usuario-mes
B20: Demanda Máxima | C20: MW
B21: Potencia Instalada | C21: MW
B22: Pot. Efectiva a Temp. Media | C22: MW
B23: Factor de Planta (****)
B25: (*) Factor Ʃ(Combustible Fósil)/Ʃ(Generación) - Consideramos los tres últimos años, por tecnología
B26: (**) F = C*(1+i)^n - i = ((F/C)^(1/n))-1
B27: (***) Energía Vendida año i / Cantidad Usuarios año i
B28: (****) Generación Fósil año i / ((Pot. Efectiva a Temp. Media año i) * 8760)

Sheet Las Misiones
B2: FICHA TECNICA DEL SISTEMA AISLADO
B3: Departamento | C3: Santa Cruz
B4: Provincia | C4: Guarayos
B5: Sistema Eléctrico | C5: Las Misiones
B6: Empresa | C6: CRE Ltda.
B7: Combustible | C7: Gas/Diesel
B8: Consumo especifico (pc/kWh) (*) | C8: =SUM(F20:H20)/SUM(F18:H18) -> 13.23130259
B9: Consumo especifico (lts/kWh) (*) | C9: 0.2771806554
B10: % Crecimiento Acumulativo Anual (**) | C10: =((H15/D15)^(1/4))-1 -> 0.06255341609
B11: Factor Ʃ(Energía Vendida)/Ʃ(Generación Total - Bruta) | C11: =SUM(D22:H22)/SUM(D15:H15) -> 0.8423761643
B12: Factor Ʃ(Generacion Total - Bruta)/Ʃ(Generación Diesel) | C12: =SUM(F19:H19)/SUM(F15:H15) -> 0.1605117573
C14: Unidades | D14: 2014 | E14: =+D14+1 -> 2015 | F14: =+E14+1 -> 2016 | G14: 2017 | H14: 2018 | I14: 2019 | J14: 2020 | K14: 2021 | L14: 2022 | M14: 2023 | N14: 2024 | O14: 2025
B15: Generación Total | C15: MWh | D15: =+D16+D17 -> 45834.74914 | E15: =+E16+E17 -> 51150.008 | F15: 55241.41 | G15: 59494.526 | H15: 58424.89577 | I15: =H15*(1+$C$10) -> 62079.57258 | J15: =I15*(1+$C$10) -> 65962.86192 | K15: 70089.06427 | L15: 74473.37467 | M15: 79131.93866 | N15: 84081.91175 | O15: 89341.52256
B16: Generación Energía Renovable | C16: MWh
B17: Generación Fósil | C17: MWh | D17: =+Datos!D41 -> 45834.74914 | E17: =+Datos!E41 -> 51150.008 | F17: =+Datos!F41 -> 55241.41 | G17: =+Datos!G41 -> 59494.526 | H17: =+Datos!H41 -> 58424.89577 | I17: =+I15-I16 -> 62079.57258 | J17: =+J15-J16 -> 65962.86192 | K17: 70089.06427 | L17: 74473.37467 | M17: 79131.93866 | N17: 84081.91175 | O17: 89341.52256
B18: Generación Fósil Gas | C18: MWh | D18: =+D17-D19 -> 45415.10947 | E18: =+E17-E19 -> 49661.70428 | F18: 53151.03324 | G18: 46841.12493 | H18: 45374.3242 | I18: =+I17-I19 -> 52115.0713 | J18: =+J17-J19 -> 55375.04704 | K18: 58838.9454 | L18: 62519.52243 | M18: 66430.33213 | N18: 70585.77634 | O18: 75001.15778
B19: Generación Fósil Diesel | C19: MWh | D19: =D21/$C$9 -> 419.6396745 | E19: =E21/$C$9 -> 1488.303718 | F19: 2090.376759 | G19: 12653.40107 | H19: 13050.57157 | I19: =+I15*$C$12 -> 9964.501285 | J19: =+J15*$C$12 -> 10587.81488 | K19: 11250.11887 | L19: 11953.85224 | M19: 12701.60653 | N19: 13496.13541 | O19: 14340.36478
B20: Combustible Fósil gas natural | C20: MPC | D20: =+Datos!D92 -> 571963.428 | E20: =+Datos!E92 -> 612920.549 | F20: =+Datos!F92 -> 663158.386 | G20: =+Datos!G92 -> 620081.935 | H20: =+Datos!H92 -> 640147.5933 | I20: =+I18*$C$8 -> 689550.2777 | J20: =+J18*$C$8 -> 732684.0031 | K20: 778515.8904 | L20: 827214.7189 | M20: 878959.8254 | N20: 933941.7651 | O20: 992363.0129
B21: Combustible Fósil Diesel | C21: Miles de Litros | D21: =+Datos!D93 -> 116.316 | E21: =+Datos!E93 -> 412.529 | F21: =+Datos!F93 -> 579.412 | G21: =+Datos!G93 -> 3507.278001 | H21: =+Datos!H93 -> 3617.36598 | I21: =+I19*$C$9 -> 2761.966997 | J21: =+J19*$C$9 -> 2934.737467 | K21: 3118.315321 | L21: 3313.376597 | M21: 3520.639622 | N21: 3740.867657 | O21: 3974.871708
B22: Energía Vendida | C22: MWh | D22: =+Datos!D59 -> 37833.119 | E22: =+Datos!E59 -> 41946.924 | F22: =+Datos!F59 -> 46627.073 | G22: =+Datos!G59 -> 48820.517 | H22: =+Datos!H59 -> 52336.572 | I22: =I15*$C$11 -> 52294.35224 | J22: =J15*$C$11 -> 55565.54261 | K22: 59041.35712 | L22: 62734.5957 | M22: 66658.85897 | N22: 70828.59831 | O22: 75259.16909
B23: Cantidad de Usuarios | D23: =+Datos!D75 -> 18188 | E23: =+Datos!E75 -> 20295 | F23: =+Datos!F75 -> 22711 | G23: =+Datos!G75 -> 25616 | H23: =+Datos!H75 -> 28263
B24: Consumo por usuario (***) | C24: kWh/usuario-mes | D24: =(D22*1000/D23)/12 -> 173.3428588 | E24: =(E22*1000/E23)/12 -> 172.2383346 | F24: =(F22*1000/F23)/12 -> 171.0884337 | G24: =(G22*1000/G23)/12 -> 158.8216902 | H24: =(H22*1000/H23)/12 -> 154.3141563
B25: Demanda Máxima | C25: MW | D25: =+Datos!D113 -> 0 | E25: =+Datos!E113 -> 0 | F25: =+Datos!F113 -> 10.15507 | G25: =+Datos!G113 -> 11.06016641 | H25: =+Datos!H113 -> 11.73985521
B26: Potencia Instalada | C26: MW | D26: =+Datos!D7 -> 17.15 | E26: =+Datos!E7 -> 17.15 | F26: =+Datos!F7 -> 21.35 | G26: =+Datos!G7 -> 21.35 | H26: =+Datos!H7 -> 21.35
B27: Pot. Efectiva a Temp. Media | C27: MW | D27: =+Datos!D23 -> 15 | E27: =+Datos!E23 -> 15 | F27: =+Datos!F23 -> 19.05 | G27: =+Datos!G23 -> 19.05 | H27: =+Datos!H23 -> 19.05
B28: Factor de Planta (****) | D28: =D17/(D27*8760) -> 0.3488184866 | E28: =E17/(E27*8760) -> 0.3892694673 | F28: =F17/(F27*8760) -> 0.3310287156 | G28: =G17/(G27*8760) -> 0.3565150949 | H28: =H17/(H27*8760) -> 0.3501054409
B30: (*) Factor Ʃ(Combustible Fósil)/Ʃ(Generación) - Consideramos los tres últimos años, por tecnología
B31: (**) F = C*(1+i)^n - i = ((F/C)^(1/n))-1
B32: (***) Energía Vendida año i / Cantidad Usuarios año i
B33: (****) Generación Fósil año i / ((Pot. Efectiva a Temp. Media año i) * 8760)

Sheet Valles
B2: FICHA TECNICA DEL SISTEMA AISLADO
B4: Departamento | C4: Santa Cruz
B5: Provincia | C5: Vallegrande
B6: Sistema Eléctrico | C6: Valles Cruceños
B7: Empresa | C7: CRE Ltda.
B8: Combustible | C8: Gas
B9: Consumo especifico (pc/kWh) (*)
B10: Consumo especifico (lts/kWh) (*)
B11: % Crecimiento Acumulativo Anual (**)
B12: Factor Ʃ(Energía Vendida)/Ʃ(Generación Total - Bruta)
B13: Factor Ʃ(Generacion Total - Bruta)/Ʃ(Generación Diesel)
C15: Unidades | D15: 2014 | E15: =+D15+1 -> 2015 | F15: =+E15+1 -> 2016 | G15: 2017 | H15: 2018 | I15: 2019 | J15: 2020 | K15: 2021 | L15: 2022 | M15: 2023 | N15: 2024 | O15: 2025
B16: Generación Total | C16: MWh
B17: Generación Energía Renovable | C17: MWh
B18: Generación Fósil | C18: MWh
B19: Generación Fósil Gas | C19: MWh
B20: Generación Fósil Diesel | C20: MWh
B21: Combustible Fósil gas natural | C21: MPC
B22: Combustible Fósil Diesel | C22: Miles de Litros
B23: Energía Vendida | C23: MWh
B24: Cantidad de Usuarios
B25: Consumo por usuario (***) | C25: kWh/usuario-mes
B26: Demanda Máxima | C26: MW
B27: Potencia Instalada | C27: MW
B28: Pot. Efectiva a Temp. Media | C28: MW
B29: Factor de Planta (****)
B31: (*) Factor Ʃ(Combustible Fósil)/Ʃ(Generación) - Consideramos los tres últimos años, por tecnología
B32: (**) F = C*(1+i)^n - i = ((F/C)^(1/n))-1
B33: (***) Energía Vendida año i / Cantidad Usuarios año i
B34: (****) Generación Fósil año i / ((Pot. Efectiva a Temp. Media año i) * 8760)

Sheet Camiri
B2: FICHA TECNICA DEL SISTEMA AISLADO
B4: Departamento | C4: Santa Cruz
B5: Provincia | C5: Cordillera
B6: Sistema Eléctrico | C6: Camiri
B7: Empresa | C7: CRE Ltda.
B8: Combustible | C8: Gas
B9: Consumo especifico (pc/kWh) (*)
B10: Consumo especifico (lts/kWh) (*)
B11: % Crecimiento Acumulativo Anual (**)
B12: Factor Ʃ(Energía Vendida)/Ʃ(Generación Total - Bruta)
B13: Factor Ʃ(Generacion Total - Bruta)/Ʃ(Generación Diesel)
C15: Unidades | D15: 2014 | E15: =+D15+1 -> 2015 | F15: =+E15+1 -> 2016 | G15: 2017 | H15: 2018 | I15: 2019 | J15: 2020 | K15: 2021 | L15: 2022 | M15: 2023 | N15: 2024 | O15: 2025
B16: Generación Total | C16: MWh
B17: Generación Energía Renovable | C17: MWh
B18: Generación Fósil | C18: MWh
B19: Combustible Fosil gas natural | C19: MPC
B20: Combustible Fosil Diesel | C20: Miles de Litros
B21: Energía Vendida | C21: MWh
B22: Cantidad de Usuarios
B23: Consumo por usuario (***) | C23: kWh/usuario-mes
B24: Demanda Máxima | C24: MW
B25: Potencia Instalada | C25: MW
B26: Pot. Efectiva a Temp. Media | C26: MW
B27: Factor de Planta (****)
B29: (*) Factor Ʃ(Combustible Fósil)/Ʃ(Generación) - Consideramos los tres últimos años, por tecnología
B30: (**) F = C*(1+i)^n - i = ((F/C)^(1/n))-1
B31: (***) Energía Vendida año i / Cantidad Usuarios año i
B32: (****) Generación Fósil año i / ((Pot. Efectiva a Temp. Media año i) * 8760)

Sheet German Busch
B2: FICHA TECNICA DEL SISTEMA AISLADO
B4: Departamento | C4: Santa Cruz
B5: Provincia | C5: German Bush
B6: Sistema Eléctrico | C6: German Busch
B7: Empresa | C7: CRE Ltda.
B8: Combustible | C8: Gas
B9: Consumo especifico (pc/kWh) (*) | C9: =SUM(F17:H17)/SUM(F16:H16) -> 13.47506885
B10: % Crecimiento Acumulativo Anual (**) | C10: 0.055
B11: Factor Ʃ(Energía Vendida)/Ʃ(Generación Total - Bruta) | C11: =SUM(F18:H18)/SUM(F14:H14) -> 0.918382438
C13: Unidades | D13: 2014 | E13: =+D13+1 -> 2015 | F13: =+E13+1 -> 2016 | G13: 2017 | H13: 2018 | I13: 2019 | J13: 2020 | K13: 2021 | L13: 2022 | M13: 2023 | N13: 2024 | O13: 2025
B14: Generación Total | C14: MWh | D14: =+D15+D16 -> 57328.465 | E14: =+E15+E16 -> 60886.548 | F14: 60284.14 | G14: 55369.353 | H14: 57411.821 | I14: =(H14*(1+$C$10)) -> 60569.47115 | J14: =(I14*(1+$C$10)) -> 63900.79207 | K14: 67415.33563 | L14: 71123.17909 | M14: 75034.95394 | N14: 79161.87641 | O14: 83515.77961
B15: Generación Energía Renovable | C15: MWh
B16: Generación Fósil | C16: MWh | D16: =+Datos!D44 -> 57328.465 | E16: =+Datos!E44 -> 60886.548 | F16: =+Datos!F44 -> 60284.14 | G16: =+Datos!G44 -> 55369.353 | H16: =+Datos!H44 -> 57411.821 | I16: =+I14-I15 -> 60569.47115 | J16: =+J14-J15 -> 63900.79207 | K16: 67415.33563 | L16: 71123.17909 | M16: 75034.95394 | N16: 79161.87641 | O16: 83515.77961
B17: Combustible Fósil gas natural | C17: MPC | D17: =+Datos!D100 -> 744218.667 | E17: =+Datos!E100 -> 784928.69 | F17: =+Datos!F100 -> 795439.492 | G17: =+Datos!G100 -> 748755.086 | H17: =+Datos!H100 -> 787872.444 | I17: =+I16*$C$11 -> 55625.93859 | J17: =+J16*$C$11 -> 58685.36521 | K17: 61913.06029 | L17: 65318.27861 | M17: 68910.78393 | N17: 72700.87705 | O17: 76699.42529
B18: Energía Vendida | C18: MWh | D18: =+Datos!D62 -> 49864.025 | E18: =+Datos!E62 -> 55849.83 | F18: =+Datos!F62 -> 55786.36 | G18: =+Datos!G62 -> 50334.797 | H18: =+Datos!H62 -> 52818.988 | I18: =I16*$C$11 -> 55625.93859 | J18: =J16*$C$11 -> 58685.36521 | K18: 61913.06029 | L18: 65318.27861 | M18: 68910.78393 | N18: 72700.87705 | O18: 76699.42529
B19: Cantidad de Usuarios | D19: =+Datos!D78 -> 8646 | E19: =+Datos!E78 -> 9004 | F19: =+Datos!F78 -> 9991 | G19: =+Datos!G78 -> 10406 | H19: =+Datos!H78 -> 10771
B20: Consumo por usuario (***) | C20: kWh/usuario-mes | D20: =(D18*1000/D19)/12 -> 480.6078437 | E20: =(E18*1000/E19)/12 -> 516.898323 | F20: =(F18*1000/F19)/12 -> 465.3051079 | G20: =(G18*1000/G19)/12 -> 403.0911413 | H20: =(H18*1000/H19)/12 -> 408.651224
B21: Demanda Máxima | C21: MW | D21: =+Datos!D116 -> 0 | E21: =+Datos!E116 -> 0 | F21: =+Datos!F116 -> 10.94204 | G21: =+Datos!G116 -> 9.697378 | H21: =+Datos!H116 -> 10.25271
B22: Potencia Instalada | C22: MW | D22: =+Datos!D10 -> 21 | E22: =+Datos!E10 -> 21 | F22: =+Datos!F10 -> 21 | G22: =+Datos!G10 -> 21 | H22: =+Datos!H10 -> 23.2
B23: Pot. Efectiva a Temp. Media | C23: MW | D23: =+Datos!D26 -> 17.4 | E23: =+Datos!E26 -> 17.4 | F23: =+Datos!F26 -> 17.4 | G23: =+Datos!G26 -> 17.4 | H23: =+Datos!H26 -> 19.1
B24: Factor de Planta (****) | D24: =D14/(D23*8760) -> 0.3761118 | E24: 0.3994551252 | F24: 0.3955029392 | G24: 0.3632587585 | H24: =H14/(H23*8760) -> 0.3431340756
B26: (*) Factor Ʃ(Combustible Fósil)/Ʃ(Generación) - Consideramos los tres últimos años, por tecnología
B27: (**) F = C*(1+i)^n - i = ((F/C)^(1/n))-1 - Cuando el crecimiento NO es un datos consistente, asumimos el promedio de los SA
B28: (***) Energía Vendida año i / Cantidad Usuarios año i
B29: (****) Generación Fósil año i / ((Pot. Efectiva a Temp. Media año i) * 8760)

Sheet Bermejo
B2: FICHA TECNICA DEL SISTEMA AISLADO
B4: Departamento | C4: Tarija
B5: Provincia | C5: Aniceto Arce
B6: Sistema Eléctrico | C6: Bermejo
B7: Empresa | C7: SETAR
B8: Combustible | C8: Gas
B9: Consumo especifico (pc/kWh) (*)
B10: % Crecimiento Acumulativo Anual (**)
B11: Factor Ʃ(Energía Vendida)/Ʃ(Generación Total - Bruta)
C13: Unidades | D13: 2014 | E13: =+D13+1 -> 2015 | F13: =+E13+1 -> 2016 | G13: 2017 | H13: 2018 | I13: 2019 | J13: 2020 | K13: 2021 | L13: 2022 | M13: 2023 | N13: 2024 | O13: 2025
B14: Generación Total | C14: MWh
B15: Generación Energía Renovable | C15: MWh
B16: Generación Fósil | C16: MWh
B17: Combustible Fósil | C17: MPC
B18: Energía Vendida | C18: MWh
B19: Cantidad de Usuarios
B20: Consumo por usuario (***) | C20: kWh/usuario-mes
B21: Demanda Máxima | C21: MW
B22: Potencia Instalada | C22: MW
B23: Pot. Efectiva a Temp. Media | C23: MW
B24: Factor de Planta (****)
B26: (*) Factor Ʃ(Combustible Fósil)/Ʃ(Generación) - Consideramos los tres últimos años, por tecnología
B27: (**) F = C*(1+i)^n - i = ((F/C)^(1/n))-1 - Cuando el crecimiento NO es un datos consistente, asumimos el promedio de los SA
B28: (***) Energía Vendida año i / Cantidad Usuarios año i
B29: (****) Generación Fósil año i / ((Pot. Efectiva a Temp. Media año i) * 8760)

Sheet Chiquitos
B2: FICHA TECNICA DEL SISTEMA AISLADO
B4: Departamento | C4: Santa Cruz
B5: Provincia | C5: Chiquitos
B6: Sistema Eléctrico | C6: Roboré y Santiago de Chiquitos
B7: Empresa | C7: CRE Ltda.
B8: Combustible | C8: Gas
B9: Consumo especifico (pc/kWh) (*)
B10: % Crecimiento Acumulativo Anual (**)
B11: Factor Ʃ(Energía Vendida)/Ʃ(Generación Total - Bruta)
C13: Unidades | D13: 2014 | E13: =+D13+1 -> 2015 | F13: =+E13+1 -> 2016 | G13: 2017 | H13: 2018 | I13: 2019 | J13: 2020 | K13: 2021 | L13: 2022 | M13: 2023 | N13: 2024 | O13: 2025
B14: Generación Total | C14: MWh
B15: Generación Energía Renovable | C15: MWh
B16: Generación Fósil | C16: MWh
B17: Combustible Fósil | C17: MPC
B18: Energía Vendida | C18: MWh
B19: Cantidad de Usuarios
B20: Consumo por usuario (***) | C20: kWh/usuario-mes
B21: Demanda Máxima | C21: MW
B22: Potencia Instalada | C22: MW
B23: Pot. Efectiva a Temp. Media | C23: MW
B24: Factor de Planta (****)
B26: (*) Factor Ʃ(Combustible Fósil)/Ʃ(Generación) - Consideramos los tres últimos años, por tecnología
B27: (**) F = C*(1+i)^n - i = ((F/C)^(1/n))-1 - Cuando el crecimiento NO es un datos consistente, asumimos el promedio de los SA
B28: (***) Energía Vendida año i / Cantidad Usuarios año i
B29: (****) Generación Fósil año i / ((Pot. Efectiva a Temp. Media año i) * 8760)

Sheet Huacaraje
B2: FICHA TECNICA DEL SISTEMA AISLADO
B4: Departamento | C4: Beni
B5: Provincia | C5: Itenez
B6: Sistema Eléctrico | C6: Huacaraje
B7: Empresa | C7: ENDE DELBENI S.A.M.
B8: Combustible | C8: Diesel
B9: Consumo especifico (lts/kWh) (*) | C9: =SUM(G17:H17)/SUM(G16:H16) -> 0.3657595495
B10: % Crecimiento Acumulativo Anual (**) | C10: =H14/G14-1 -> 0.001514992038 | D10: Se debe tomar una decisión
B11: Factor Ʃ(Energía Vendida)/Ʃ(Generación Total - Bruta) | C11: =SUM(G18:H18)/SUM(G14:H14) -> 0.8618397074
C13: Unidades | D13: 2014 | E13: =+D13+1 -> 2015 | F13: =+E13+1 -> 2016 | G13: 2017 | H13: 2018 | I13: 2019 | J13: 2020 | K13: 2021 | L13: 2022 | M13: 2023 | N13: 2024 | O13: 2025
B14: Generación Total | C14: MWh | D14: =+D15+D16 -> 0 | E14: =+E15+E16 -> 0 | F14: 190 | G14: 679.305 | H14: 680.3341417 | I14: =+H14*(1+$C$10) -> 681.3648425 | J14: =+I14*(1+$C$10) -> 682.3971048 | K14: 683.430931 | L14: 684.4663234 | M14: 685.5032844 | N14: 686.5418164 | O14: 687.5819218
B15: Generación Energía Renovable | C15: MWh
B16: Generación Fósil | C16: MWh | D16: =+Datos!D47 -> 0 | E16: =+Datos!E47 -> 0 | F16: =+Datos!F47 -> 190 | G16: =+Datos!G47 -> 679.305 | H16: =+Datos!H47 -> 680.3341417 | I16: =+I14-I15 -> 681.3648425 | J16: =+J14-J15 -> 682.3971048 | K16: 683.430931 | L16: 684.4663234 | M16: 685.5032844 | N16: 686.5418164 | O16: 687.5819218
B17: Combustible Fósil | C17: Miles de Litros | D17: =+Datos!D103 -> 0 | E17: =+Datos!E103 -> 0 | F17: =+Datos!F103 -> 0 | G17: =+Datos!G103 -> 284.651 | H17: =+Datos!H103 -> 212.65 | I17: =+I16*$C$9 -> 249.2156979 | J17: =+J16*$C$9 -> 249.5932577 | K17: 249.9713895 | L17: 250.3500941 | M17: 250.7293725 | N17: 251.1092255 | O17: 251.489654
B18: Energía Vendida | C18: MWh | D18: =+Datos!D65 -> 0 | E18: =+Datos!E65 -> 0 | F18: =+Datos!F65 -> 0 | G18: =+Datos!G65 -> 575.524 | H18: =+Datos!H65 -> 596.267 | I18: =I16*$C$11 -> 587.2272765 | J18: =J16*$C$11 -> 588.1169211 | K18: 589.0079136 | L18: 589.9002559 | M18: 590.7939501 | N18: 591.6889982 | O18: 592.5854023
B19: Cantidad de Usuarios | D19: =+Datos!D81 -> 0 | E19: =+Datos!E81 -> 0 | F19: =+Datos!F81 -> 406 | G19: =+Datos!G81 -> 490 | H19: =+Datos!H81 -> 505
B20: Consumo por usuario (***) | C20: kWh/usuario-mes | F20: =(F18*1000/F19)/12 -> 0 | G20: =(G18*1000/G19)/12 -> 97.87823129 | H20: =(H18*1000/H19)/12 -> 98.39389439
B21: Demanda Máxima | C21: MW | D21: =+Datos!D119 -> 0 | E21: =+Datos!E119 -> 0 | F21: =+Datos!F119 -> 0 | G21: =+Datos!G119 -> 0.169 | H21: =+Datos!H119 -> 0.159
B22: Potencia Instalada | C22: MW | D22: =+Datos!D13 -> 0 | E22: =+Datos!E13 -> 0 | F22: =+Datos!F13 -> 0.57 | G22: =+Datos!G13 -> 0.695 | H22: =+Datos!H13 -> 0.464
B23: Pot. Efectiva a Temp. Media | C23: MW | D23: =+Datos!D29 -> 0 | E23: =+Datos!E29 -> 0 | F23: =+Datos!F29 -> 0.13 | G23: =+Datos!G29 -> 0.648 | H23: =+Datos!H29 -> 0.398
B24: Factor de Planta (****) | F24: =F16/(F23*8760) -> 0.1668422901 | G24: =G16/(G23*8760) -> 0.1196701125 | H24: =H16/(H23*8760) -> 0.1951349618
B26: (*) Factor Ʃ(Combustible Fósil)/Ʃ(Generación) - Consideramos los tres últimos años, por tecnología
B27: (**) F = C*(1+i)^n - i = ((F/C)^(1/n))-1 - Cuando el crecimiento NO es un datos consistente, asumimos el promedio de los SA
B28: (***) Energía Vendida año i / Cantidad Usuarios año i
B29: (****) Generación Fósil año i / ((Pot. Efectiva a Temp. Media año i) * 8760)

Sheet Bella Vista
B2: FICHA TECNICA DEL SISTEMA AISLADO
B4: Departamento | C4: Beni
B5: Provincia | C5: Itenez
B6: Sistema Eléctrico | C6: Bella Vista
B7: Empresa | C7: ENDE DELBENI S.A.M.
B8: Combustible | C8: Diesel
B9: Consumo especifico (lts/kWh) (*)
B10: % Crecimiento Acumulativo Anual (**)
B11: Factor Ʃ(Energía Vendida)/Ʃ(Generación Total - Bruta)
C13: Unidades | D13: 2014 | E13: =+D13+1 -> 2015 | F13: =+E13+1 -> 2016 | G13: 2017 | H13: 2018 | I13: 2019 | J13: 2020 | K13: 2021 | L13: 2022 | M13: 2023 | N13: 2024 | O13: 2025
B14: Generación Total | C14: MWh
B15: Generación Energía Renovable | C15: MWh
B16: Generación Fósil | C16: MWh
B17: Combustible Fósil | C17: Miles de Litros
B18: Energía Vendida | C18: MWh
B19: Cantidad de Usuarios
B20: Consumo por usuario (***) | C20: kWh/usuario-mes
B21: Demanda Máxima | C21: MW
B22: Potencia Instalada | C22: MW
B23: Pot. Efectiva a Temp. Media | C23: MW
B24: Factor de Planta (****)
B26: (*) Factor Ʃ(Combustible Fósil)/Ʃ(Generación) - Consideramos los tres últimos años, por tecnología
B27: (**) F = C*(1+i)^n - i = ((F/C)^(1/n))-1 - Cuando el crecimiento NO es un datos consistente, asumimos el promedio de los SA
B28: (***) Energía Vendida año i / Cantidad Usuarios año i
B29: (****) Generación Fósil año i / ((Pot. Efectiva a Temp. Media año i) * 8760)

Sheet El Sena
B2: FICHA TECNICA DEL SISTEMA AISLADO
S3: IPPC - DATA
B4: Departamento | C4: Pando | S4: EFCO2,GAS | T4: 0.0543 | U4: tCO2/GJ | V4: kgCO2/MJ | W4: Source for Gas EF - IPCC 2006 (Lower value)
B5: Provincia | C5: Madre de Dios | F5: Generacion Solar Octubre (kWh) | G5: 18719.23 | S5: EFCO2,DIESEL | T5: 0.0726 | U5: tCO2/GJ | V5: kgCO2/MJ | W5: Source for Diesel EF - IPCC 2006 (Lower value)
B6: Sistema Eléctrico | C6: El Sena | F6: Generacion Solar Noviembre (kWh) | G6: 15162.55 | U6: Value | V6: Units
B7: Empresa | C7: ENDE | G7: =AVERAGE(G5:G6) -> 16940.89 | H7: =+G7/(C11*1000*8760) -> 0.004834728881 | U7: 0.00105506 | V7: MJ/Btu
B8: Combustible | C8: Diesel | S8: Conversion factors | U8: 1.05506e-06 | V8: GJ/Btu
B9: Energía Alternativa | C9: Solar
B10: Potencia Instalada MW | C10: 0.4
B11: Potencia a Temp. Media (MW) | C11: =+C10 -> 0.4
B12: Consumo especifico (lts/kWh) (*)
B13: % Crecimiento Acumulativo Anual (**) | S13: Emission Factors
B14: Factor Ʃ(Energía Vendida)/Ʃ(Generación Total - Bruta) | T14: CO2 Emissions Factor Natural Gas | U14: =T4*1000000 -> 54300 | V14: gCO2/GJ
T15: CO2 Emissions Factor Natural Gas (g/BTU) | U15: =U14*U8 -> 0.057289758 | V15: gCO2/BTU
C16: Unidades | D16: 2014 | E16: =+D16+1 -> 2015 | F16: =+E16+1 -> 2016 | G16: 2017 | H16: 2018 | I16: 2019 | J16: 2020 | K16: 2021 | L16: 2022 | M16: 2023 | N16: 2024 | O16: 2025
B17: Generación Total | C17: MWh
B18: Generación Energía Renovable | C18: MWh
B19: Generación Fósil | C19: MWh
B20: Combustible Fósil | C20: Miles de Litros
B21: Energía Vendida | C21: MWh
B22: Cantidad de Usuarios
B23: Consumo por usuario (***) | C23: kWh/usuario-mes
B24: Demanda Máxima | C24: MW
B25: Potencia Instalada | C25: MW
B26: Pot. Efectiva a Temp. Media | C26: MW
B27: Factor de Planta (****)
B29: (*) Factor Ʃ(Combustible Fósil)/Ʃ(Generación) - Consideramos los tres últimos años, por tecnología
B30: (**) F = C*(1+i)^n - i = ((F/C)^(1/n))-1 - Cuando el crecimiento NO es un datos consistente, asumimos el promedio de los SA
B31: (***) Energía Vendida año i / Cantidad Usuarios año i
B32: (****) Generación Fósil año i / ((Pot. Efectiva a Temp. Media año i) * 8760)
